{"text_format":"3","workbook":"xlsx","n_sheets":2,"sheets":["Tunniplaan","Tundide loend"],"not_rendered":{"defined_names":17},"read":"whole","date_system":"1900"}

{"sheet":"Tunniplaan","index":0,"n_rows":56,"n_cols":9,"rows_kept":56,"merged":[[0,1,1,5],[0,8,1,8]]}
[null,"TUNNIPLAAN",{"$nulls":4},"AJAKAVA ALGUS","AJAVAHEMIK","Tundide loend"]
[{"$nulls":6},"08:00:00","15 MIN"]
[null,"KELLAAEG","PÜHAPÄEV","ESMASPÄEV","TEISIPÄEV","KOLMAPÄEV","NELJAPÄEV","REEDE","LAUPÄEV"]
[null,{"$f":"AjakavaAlgus","v":"08:00:00"},{"$f":"IFERROR(INDEX(TundideLoend[],MATCH(SUMPRODUCT((TundideLoend[PÄEV]=Tunniplaan[[#Headers],[PÜHAPÄEV]])*(ROUNDDOWN($B4,10)>=ROUNDDOWN(TundideLoend[ALGUSKELLAAEG],10))*($B4<=TundideLoend[LÕPPKELLAAEG]),TundideLoend[KORDUMATU]),TundideLoend[KORDUMATU],0),2),0)","v":0},{"$f":"IFERROR(INDEX(TundideLoend[],MATCH(SUMPRODUCT((TundideLoend[PÄEV]=Tunniplaan[[#Headers],[ESMASPÄEV]])*(ROUNDDOWN($B4,10)>=ROUNDDOWN(TundideLoend[ALGUSKELLAAEG],10))*($B4<=TundideLoend[LÕPPKELLAAEG]),TundideLoend[KORDUMATU]),TundideLoend[KORDUMATU],0),2),0)","v":0},{"$f":"IFERROR(INDEX(TundideLoend[],MATCH(SUMPRODUCT((TundideLoend[PÄEV]=Tunniplaan[[#Headers],[TEISIPÄEV]])*(ROUNDDOWN($B4,10)>=ROUNDDOWN(TundideLoend[ALGUSKELLAAEG],10))*($B4<=TundideLoend[LÕPPKELLAAEG]),TundideLoend[KORDUMATU]),TundideLoend[KORDUMATU],0),2),0)","v":0},{"$f":"IFERROR(INDEX(TundideLoend[],MATCH(SUMPRODUCT((TundideLoend[PÄEV]=Tunniplaan[[#Headers],[KOLMAPÄEV]])*(ROUNDDOWN($B4,10)>=ROUNDDOWN(TundideLoend[ALGUSKELLAAEG],10))*($B4<=TundideLoend[LÕPPKELLAAEG]),TundideLoend[KORDUMATU]),TundideLoend[KORDUMATU],0),2),0)","v":0},{"$f":"IFERROR(INDEX(TundideLoend[],MATCH(SUMPRODUCT((TundideLoend[PÄEV]=Tunniplaan[[#Headers],[NELJAPÄEV]])*(ROUNDDOWN($B4,10)>=ROUNDDOWN(TundideLoend[ALGUSKELLAAEG],10))*($B4<=TundideLoend[LÕPPKELLAAEG]),TundideLoend[KORDUMATU]),TundideLoend[KORDUMATU],0),2),0)","v":0},{"$f":"IFERROR(INDEX(TundideLoend[],MATCH(SUMPRODUCT((TundideLoend[PÄEV]=Tunniplaan[[#Headers],[REEDE]])*(ROUNDDOWN($B4,10)>=ROUNDDOWN(TundideLoend[ALGUSKELLAAEG],10))*($B4<=TundideLoend[LÕPPKELLAAEG]),TundideLoend[KORDUMATU]),TundideLoend[KORDUMATU],0),2),0)","v":0},{"$f":"IFERROR(INDEX(TundideLoend[],MATCH(SUMPRODUCT((TundideLoend[PÄEV]=Tunniplaan[[#Headers],[LAUPÄEV]])*(ROUNDDOWN($B4,10)>=ROUNDDOWN(TundideLoend[ALGUSKELLAAEG],10))*($B4<=TundideLoend[LÕPPKELLAAEG]),TundideLoend[KORDUMATU]),TundideLoend[KORDUMATU],0),2),0)","v":0}]
[null,{"$f":"B4+Samm","v":"08:15:00"},{"$f":"IFERROR(INDEX(TundideLoend[],MATCH(SUMPRODUCT((TundideLoend[PÄEV]=Tunniplaan[[#Headers],[PÜHAPÄEV]])*(ROUNDDOWN($B5,10)>=ROUNDDOWN(TundideLoend[ALGUSKELLAAEG],10))*($B5<=TundideLoend[LÕPPKELLAAEG]),TundideLoend[KORDUMATU]),TundideLoend[KORDUMATU],0),2),0)","v":0},{"$f":"IFERROR(INDEX(TundideLoend[],MATCH(SUMPRODUCT((TundideLoend[PÄEV]=Tunniplaan[[#Headers],[ESMASPÄEV]])*(ROUNDDOWN($B5,10)>=ROUNDDOWN(TundideLoend[ALGUSKELLAAEG],10))*($B5<=TundideLoend[LÕPPKELLAAEG]),TundideLoend[KORDUMATU]),TundideLoend[KORDUMATU],0),2),0)","v":"MTH-113"},{"$f":"IFERROR(INDEX(TundideLoend[],MATCH(SUMPRODUCT((TundideLoend[PÄEV]=Tunniplaan[[#Headers],[TEISIPÄEV]])*(ROUNDDOWN($B5,10)>=ROUNDDOWN(TundideLoend[ALGUSKELLAAEG],10))*($B5<=TundideLoend[LÕPPKELLAAEG]),TundideLoend[KORDUMATU]),TundideLoend[KORDUMATU],0),2),0)","v":0},{"$f":"IFERROR(INDEX(TundideLoend[],MATCH(SUMPRODUCT((TundideLoend[PÄEV]=Tunniplaan[[#Headers],[KOLMAPÄEV]])*(ROUNDDOWN($B5,10)>=ROUNDDOWN(TundideLoend[ALGUSKELLAAEG],10))*($B5<=TundideLoend[LÕPPKELLAAEG]),TundideLoend[KORDUMATU]),TundideLoend[KORDUMATU],0),2),0)","v":"MTH-113"},{"$f":"IFERROR(INDEX(TundideLoend[],MATCH(SUMPRODUCT((TundideLoend[PÄEV]=Tunniplaan[[#Headers],[NELJAPÄEV]])*(ROUNDDOWN($B5,10)>=ROUNDDOWN(TundideLoend[ALGUSKELLAAEG],10))*($B5<=TundideLoend[LÕPPKELLAAEG]),TundideLoend[KORDUMATU]),TundideLoend[KORDUMATU],0),2),0)","v":0},{"$f":"IFERROR(INDEX(TundideLoend[],MATCH(SUMPRODUCT((TundideLoend[PÄEV]=Tunniplaan[[#Headers],[REEDE]])*(ROUNDDOWN($B5,10)>=ROUNDDOWN(TundideLoend[ALGUSKELLAAEG],10))*($B5<=TundideLoend[LÕPPKELLAAEG]),TundideLoend[KORDUMATU]),TundideLoend[KORDUMATU],0),2),0)","v":"MTH-113"},{"$f":"IFERROR(INDEX(TundideLoend[],MATCH(SUMPRODUCT((TundideLoend[PÄEV]=Tunniplaan[[#Headers],[LAUPÄEV]])*(ROUNDDOWN($B5,10)>=ROUNDDOWN(TundideLoend[ALGUSKELLAAEG],10))*($B5<=TundideLoend[LÕPPKELLAAEG]),TundideLoend[KORDUMATU]),TundideLoend[KORDUMATU],0),2),0)","v":0}]
[null,"08:30:00",{"$f":"IFERROR(INDEX(TundideLoend[],MATCH(SUMPRODUCT((TundideLoend[PÄEV]=Tunniplaan[[#Headers],[PÜHAPÄEV]])*(ROUNDDOWN($B6,10)>=ROUNDDOWN(TundideLoend[ALGUSKELLAAEG],10))*($B6<=TundideLoend[LÕPPKELLAAEG]),TundideLoend[KORDUMATU]),TundideLoend[KORDUMATU],0),2),0)","v":0},{"$f":"IFERROR(INDEX(TundideLoend[],MATCH(SUMPRODUCT((TundideLoend[PÄEV]=Tunniplaan[[#Headers],[ESMASPÄEV]])*(ROUNDDOWN($B6,10)>=ROUNDDOWN(TundideLoend[ALGUSKELLAAEG],10))*($B6<=TundideLoend[LÕPPKELLAAEG]),TundideLoend[KORDUMATU]),TundideLoend[KORDUMATU],0),2),0)","v":"MTH-113"},{"$f":"IFERROR(INDEX(TundideLoend[],MATCH(SUMPRODUCT((TundideLoend[PÄEV]=Tunniplaan[[#Headers],[TEISIPÄEV]])*(ROUNDDOWN($B6,10)>=ROUNDDOWN(TundideLoend[ALGUSKELLAAEG],10))*($B6<=TundideLoend[LÕPPKELLAAEG]),TundideLoend[KORDUMATU]),TundideLoend[KORDUMATU],0),2),0)","v":0},{"$f":"IFERROR(INDEX(TundideLoend[],MATCH(SUMPRODUCT((TundideLoend[PÄEV]=Tunniplaan[[#Headers],[KOLMAPÄEV]])*(ROUNDDOWN($B6,10)>=ROUNDDOWN(TundideLoend[ALGUSKELLAAEG],10))*($B6<=TundideLoend[LÕPPKELLAAEG]),TundideLoend[KORDUMATU]),TundideLoend[KORDUMATU],0),2),0)","v":"MTH-113"},{"$f":"IFERROR(INDEX(TundideLoend[],MATCH(SUMPRODUCT((TundideLoend[PÄEV]=Tunniplaan[[#Headers],[NELJAPÄEV]])*(ROUNDDOWN($B6,10)>=ROUNDDOWN(TundideLoend[ALGUSKELLAAEG],10))*($B6<=TundideLoend[LÕPPKELLAAEG]),TundideLoend[KORDUMATU]),TundideLoend[KORDUMATU],0),2),0)","v":0},{"$f":"IFERROR(INDEX(TundideLoend[],MATCH(SUMPRODUCT((TundideLoend[PÄEV]=Tunniplaan[[#Headers],[REEDE]])*(ROUNDDOWN($B6,10)>=ROUNDDOWN(TundideLoend[ALGUSKELLAAEG],10))*($B6<=TundideLoend[LÕPPKELLAAEG]),TundideLoend[KORDUMATU]),TundideLoend[KORDUMATU],0),2),0)","v":"MTH-113"},{"$f":"IFERROR(INDEX(TundideLoend[],MATCH(SUMPRODUCT((TundideLoend[PÄEV]=Tunniplaan[[#Headers],[LAUPÄEV]])*(ROUNDDOWN($B6,10)>=ROUNDDOWN(TundideLoend[ALGUSKELLAAEG],10))*($B6<=TundideLoend[LÕPPKELLAAEG]),TundideLoend[KORDUMATU]),TundideLoend[KORDUMATU],0),2),0)","v":0}]
[null,"08:45:00",{"$f":"IFERROR(INDEX(TundideLoend[],MATCH(SUMPRODUCT((TundideLoend[PÄEV]=Tunniplaan[[#Headers],[PÜHAPÄEV]])*(ROUNDDOWN($B7,10)>=ROUNDDOWN(TundideLoend[ALGUSKELLAAEG],10))*($B7<=TundideLoend[LÕPPKELLAAEG]),TundideLoend[KORDUMATU]),TundideLoend[KORDUMATU],0),2),0)","v":0},{"$f":"IFERROR(INDEX(TundideLoend[],MATCH(SUMPRODUCT((TundideLoend[PÄEV]=Tunniplaan[[#Headers],[ESMASPÄEV]])*(ROUNDDOWN($B7,10)>=ROUNDDOWN(TundideLoend[ALGUSKELLAAEG],10))*($B7<=TundideLoend[LÕPPKELLAAEG]),TundideLoend[KORDUMATU]),TundideLoend[KORDUMATU],0),2),0)","v":"MTH-113"},{"$f":"IFERROR(INDEX(TundideLoend[],MATCH(SUMPRODUCT((TundideLoend[PÄEV]=Tunniplaan[[#Headers],[TEISIPÄEV]])*(ROUNDDOWN($B7,10)>=ROUNDDOWN(TundideLoend[ALGUSKELLAAEG],10))*($B7<=TundideLoend[LÕPPKELLAAEG]),TundideLoend[KORDUMATU]),TundideLoend[KORDUMATU],0),2),0)","v":0},{"$f":"IFERROR(INDEX(TundideLoend[],MATCH(SUMPRODUCT((TundideLoend[PÄEV]=Tunniplaan[[#Headers],[KOLMAPÄEV]])*(ROUNDDOWN($B7,10)>=ROUNDDOWN(TundideLoend[ALGUSKELLAAEG],10))*($B7<=TundideLoend[LÕPPKELLAAEG]),TundideLoend[KORDUMATU]),TundideLoend[KORDUMATU],0),2),0)","v":"MTH-113"},{"$f":"IFERROR(INDEX(TundideLoend[],MATCH(SUMPRODUCT((TundideLoend[PÄEV]=Tunniplaan[[#Headers],[NELJAPÄEV]])*(ROUNDDOWN($B7,10)>=ROUNDDOWN(TundideLoend[ALGUSKELLAAEG],10))*($B7<=TundideLoend[LÕPPKELLAAEG]),TundideLoend[KORDUMATU]),TundideLoend[KORDUMATU],0),2),0)","v":0},{"$f":"IFERROR(INDEX(TundideLoend[],MATCH(SUMPRODUCT((TundideLoend[PÄEV]=Tunniplaan[[#Headers],[REEDE]])*(ROUNDDOWN($B7,10)>=ROUNDDOWN(TundideLoend[ALGUSKELLAAEG],10))*($B7<=TundideLoend[LÕPPKELLAAEG]),TundideLoend[KORDUMATU]),TundideLoend[KORDUMATU],0),2),0)","v":"MTH-113"},{"$f":"IFERROR(INDEX(TundideLoend[],MATCH(SUMPRODUCT((TundideLoend[PÄEV]=Tunniplaan[[#Headers],[LAUPÄEV]])*(ROUNDDOWN($B7,10)>=ROUNDDOWN(TundideLoend[ALGUSKELLAAEG],10))*($B7<=TundideLoend[LÕPPKELLAAEG]),TundideLoend[KORDUMATU]),TundideLoend[KORDUMATU],0),2),0)","v":0}]
[null,"09:00:00",{"$f":"IFERROR(INDEX(TundideLoend[],MATCH(SUMPRODUCT((TundideLoend[PÄEV]=Tunniplaan[[#Headers],[PÜHAPÄEV]])*(ROUNDDOWN($B8,10)>=ROUNDDOWN(TundideLoend[ALGUSKELLAAEG],10))*($B8<=TundideLoend[LÕPPKELLAAEG]),TundideLoend[KORDUMATU]),TundideLoend[KORDUMATU],0),2),0)","v":0},{"$f":"IFERROR(INDEX(TundideLoend[],MATCH(SUMPRODUCT((TundideLoend[PÄEV]=Tunniplaan[[#Headers],[ESMASPÄEV]])*(ROUNDDOWN($B8,10)>=ROUNDDOWN(TundideLoend[ALGUSKELLAAEG],10))*($B8<=TundideLoend[LÕPPKELLAAEG]),TundideLoend[KORDUMATU]),TundideLoend[KORDUMATU],0),2),0)","v":"MTH-113"},{"$f":"IFERROR(INDEX(TundideLoend[],MATCH(SUMPRODUCT((TundideLoend[PÄEV]=Tunniplaan[[#Headers],[TEISIPÄEV]])*(ROUNDDOWN($B8,10)>=ROUNDDOWN(TundideLoend[ALGUSKELLAAEG],10))*($B8<=TundideLoend[LÕPPKELLAAEG]),TundideLoend[KORDUMATU]),TundideLoend[KORDUMATU],0),2),0)","v":0},{"$f":"IFERROR(INDEX(TundideLoend[],MATCH(SUMPRODUCT((TundideLoend[PÄEV]=Tunniplaan[[#Headers],[KOLMAPÄEV]])*(ROUNDDOWN($B8,10)>=ROUNDDOWN(TundideLoend[ALGUSKELLAAEG],10))*($B8<=TundideLoend[LÕPPKELLAAEG]),TundideLoend[KORDUMATU]),TundideLoend[KORDUMATU],0),2),0)","v":"MTH-113"},{"$f":"IFERROR(INDEX(TundideLoend[],MATCH(SUMPRODUCT((TundideLoend[PÄEV]=Tunniplaan[[#Headers],[NELJAPÄEV]])*(ROUNDDOWN($B8,10)>=ROUNDDOWN(TundideLoend[ALGUSKELLAAEG],10))*($B8<=TundideLoend[LÕPPKELLAAEG]),TundideLoend[KORDUMATU]),TundideLoend[KORDUMATU],0),2),0)","v":0},{"$f":"IFERROR(INDEX(TundideLoend[],MATCH(SUMPRODUCT((TundideLoend[PÄEV]=Tunniplaan[[#Headers],[REEDE]])*(ROUNDDOWN($B8,10)>=ROUNDDOWN(TundideLoend[ALGUSKELLAAEG],10))*($B8<=TundideLoend[LÕPPKELLAAEG]),TundideLoend[KORDUMATU]),TundideLoend[KORDUMATU],0),2),0)","v":"MTH-113"},{"$f":"IFERROR(INDEX(TundideLoend[],MATCH(SUMPRODUCT((TundideLoend[PÄEV]=Tunniplaan[[#Headers],[LAUPÄEV]])*(ROUNDDOWN($B8,10)>=ROUNDDOWN(TundideLoend[ALGUSKELLAAEG],10))*($B8<=TundideLoend[LÕPPKELLAAEG]),TundideLoend[KORDUMATU]),TundideLoend[KORDUMATU],0),2),0)","v":0}]
[null,"09:15:00",{"$f":"IFERROR(INDEX(TundideLoend[],MATCH(SUMPRODUCT((TundideLoend[PÄEV]=Tunniplaan[[#Headers],[PÜHAPÄEV]])*(ROUNDDOWN($B9,10)>=ROUNDDOWN(TundideLoend[ALGUSKELLAAEG],10))*($B9<=TundideLoend[LÕPPKELLAAEG]),TundideLoend[KORDUMATU]),TundideLoend[KORDUMATU],0),2),0)","v":0},{"$f":"IFERROR(INDEX(TundideLoend[],MATCH(SUMPRODUCT((TundideLoend[PÄEV]=Tunniplaan[[#Headers],[ESMASPÄEV]])*(ROUNDDOWN($B9,10)>=ROUNDDOWN(TundideLoend[ALGUSKELLAAEG],10))*($B9<=TundideLoend[LÕPPKELLAAEG]),TundideLoend[KORDUMATU]),TundideLoend[KORDUMATU],0),2),0)","v":"MTH-113"},{"$f":"IFERROR(INDEX(TundideLoend[],MATCH(SUMPRODUCT((TundideLoend[PÄEV]=Tunniplaan[[#Headers],[TEISIPÄEV]])*(ROUNDDOWN($B9,10)>=ROUNDDOWN(TundideLoend[ALGUSKELLAAEG],10))*($B9<=TundideLoend[LÕPPKELLAAEG]),TundideLoend[KORDUMATU]),TundideLoend[KORDUMATU],0),2),0)","v":0},{"$f":"IFERROR(INDEX(TundideLoend[],MATCH(SUMPRODUCT((TundideLoend[PÄEV]=Tunniplaan[[#Headers],[KOLMAPÄEV]])*(ROUNDDOWN($B9,10)>=ROUNDDOWN(TundideLoend[ALGUSKELLAAEG],10))*($B9<=TundideLoend[LÕPPKELLAAEG]),TundideLoend[KORDUMATU]),TundideLoend[KORDUMATU],0),2),0)","v":"MTH-113"},{"$f":"IFERROR(INDEX(TundideLoend[],MATCH(SUMPRODUCT((TundideLoend[PÄEV]=Tunniplaan[[#Headers],[NELJAPÄEV]])*(ROUNDDOWN($B9,10)>=ROUNDDOWN(TundideLoend[ALGUSKELLAAEG],10))*($B9<=TundideLoend[LÕPPKELLAAEG]),TundideLoend[KORDUMATU]),TundideLoend[KORDUMATU],0),2),0)","v":0},{"$f":"IFERROR(INDEX(TundideLoend[],MATCH(SUMPRODUCT((TundideLoend[PÄEV]=Tunniplaan[[#Headers],[REEDE]])*(ROUNDDOWN($B9,10)>=ROUNDDOWN(TundideLoend[ALGUSKELLAAEG],10))*($B9<=TundideLoend[LÕPPKELLAAEG]),TundideLoend[KORDUMATU]),TundideLoend[KORDUMATU],0),2),0)","v":"MTH-113"},{"$f":"IFERROR(INDEX(TundideLoend[],MATCH(SUMPRODUCT((TundideLoend[PÄEV]=Tunniplaan[[#Headers],[LAUPÄEV]])*(ROUNDDOWN($B9,10)>=ROUNDDOWN(TundideLoend[ALGUSKELLAAEG],10))*($B9<=TundideLoend[LÕPPKELLAAEG]),TundideLoend[KORDUMATU]),TundideLoend[KORDUMATU],0),2),0)","v":0}]
[null,"09:30:00",{"$f":"IFERROR(INDEX(TundideLoend[],MATCH(SUMPRODUCT((TundideLoend[PÄEV]=Tunniplaan[[#Headers],[PÜHAPÄEV]])*(ROUNDDOWN($B10,10)>=ROUNDDOWN(TundideLoend[ALGUSKELLAAEG],10))*($B10<=TundideLoend[LÕPPKELLAAEG]),TundideLoend[KORDUMATU]),TundideLoend[KORDUMATU],0),2),0)","v":0},{"$f":"IFERROR(INDEX(TundideLoend[],MATCH(SUMPRODUCT((TundideLoend[PÄEV]=Tunniplaan[[#Headers],[ESMASPÄEV]])*(ROUNDDOWN($B10,10)>=ROUNDDOWN(TundideLoend[ALGUSKELLAAEG],10))*($B10<=TundideLoend[LÕPPKELLAAEG]),TundideLoend[KORDUMATU]),TundideLoend[KORDUMATU],0),2),0)","v":0},{"$f":"IFERROR(INDEX(TundideLoend[],MATCH(SUMPRODUCT((TundideLoend[PÄEV]=Tunniplaan[[#Headers],[TEISIPÄEV]])*(ROUNDDOWN($B10,10)>=ROUNDDOWN(TundideLoend[ALGUSKELLAAEG],10))*($B10<=TundideLoend[LÕPPKELLAAEG]),TundideLoend[KORDUMATU]),TundideLoend[KORDUMATU],0),2),0)","v":0},{"$f":"IFERROR(INDEX(TundideLoend[],MATCH(SUMPRODUCT((TundideLoend[PÄEV]=Tunniplaan[[#Headers],[KOLMAPÄEV]])*(ROUNDDOWN($B10,10)>=ROUNDDOWN(TundideLoend[ALGUSKELLAAEG],10))*($B10<=TundideLoend[LÕPPKELLAAEG]),TundideLoend[KORDUMATU]),TundideLoend[KORDUMATU],0),2),0)","v":0},{"$f":"IFERROR(INDEX(TundideLoend[],MATCH(SUMPRODUCT((TundideLoend[PÄEV]=Tunniplaan[[#Headers],[NELJAPÄEV]])*(ROUNDDOWN($B10,10)>=ROUNDDOWN(TundideLoend[ALGUSKELLAAEG],10))*($B10<=TundideLoend[LÕPPKELLAAEG]),TundideLoend[KORDUMATU]),TundideLoend[KORDUMATU],0),2),0)","v":0},{"$f":"IFERROR(INDEX(TundideLoend[],MATCH(SUMPRODUCT((TundideLoend[PÄEV]=Tunniplaan[[#Headers],[REEDE]])*(ROUNDDOWN($B10,10)>=ROUNDDOWN(TundideLoend[ALGUSKELLAAEG],10))*($B10<=TundideLoend[LÕPPKELLAAEG]),TundideLoend[KORDUMATU]),TundideLoend[KORDUMATU],0),2),0)","v":0},{"$f":"IFERROR(INDEX(TundideLoend[],MATCH(SUMPRODUCT((TundideLoend[PÄEV]=Tunniplaan[[#Headers],[LAUPÄEV]])*(ROUNDDOWN($B10,10)>=ROUNDDOWN(TundideLoend[ALGUSKELLAAEG],10))*($B10<=TundideLoend[LÕPPKELLAAEG]),TundideLoend[KORDUMATU]),TundideLoend[KORDUMATU],0),2),0)","v":0}]
[null,"09:45:00",{"$f":"IFERROR(INDEX(TundideLoend[],MATCH(SUMPRODUCT((TundideLoend[PÄEV]=Tunniplaan[[#Headers],[PÜHAPÄEV]])*(ROUNDDOWN($B11,10)>=ROUNDDOWN(TundideLoend[ALGUSKELLAAEG],10))*($B11<=TundideLoend[LÕPPKELLAAEG]),TundideLoend[KORDUMATU]),TundideLoend[KORDUMATU],0),2),0)","v":0},{"$f":"IFERROR(INDEX(TundideLoend[],MATCH(SUMPRODUCT((TundideLoend[PÄEV]=Tunniplaan[[#Headers],[ESMASPÄEV]])*(ROUNDDOWN($B11,10)>=ROUNDDOWN(TundideLoend[ALGUSKELLAAEG],10))*($B11<=TundideLoend[LÕPPKELLAAEG]),TundideLoend[KORDUMATU]),TundideLoend[KORDUMATU],0),2),0)","v":0},{"$f":"IFERROR(INDEX(TundideLoend[],MATCH(SUMPRODUCT((TundideLoend[PÄEV]=Tunniplaan[[#Headers],[TEISIPÄEV]])*(ROUNDDOWN($B11,10)>=ROUNDDOWN(TundideLoend[ALGUSKELLAAEG],10))*($B11<=TundideLoend[LÕPPKELLAAEG]),TundideLoend[KORDUMATU]),TundideLoend[KORDUMATU],0),2),0)","v":0},{"$f":"IFERROR(INDEX(TundideLoend[],MATCH(SUMPRODUCT((TundideLoend[PÄEV]=Tunniplaan[[#Headers],[KOLMAPÄEV]])*(ROUNDDOWN($B11,10)>=ROUNDDOWN(TundideLoend[ALGUSKELLAAEG],10))*($B11<=TundideLoend[LÕPPKELLAAEG]),TundideLoend[KORDUMATU]),TundideLoend[KORDUMATU],0),2),0)","v":0},{"$f":"IFERROR(INDEX(TundideLoend[],MATCH(SUMPRODUCT((TundideLoend[PÄEV]=Tunniplaan[[#Headers],[NELJAPÄEV]])*(ROUNDDOWN($B11,10)>=ROUNDDOWN(TundideLoend[ALGUSKELLAAEG],10))*($B11<=TundideLoend[LÕPPKELLAAEG]),TundideLoend[KORDUMATU]),TundideLoend[KORDUMATU],0),2),0)","v":0},{"$f":"IFERROR(INDEX(TundideLoend[],MATCH(SUMPRODUCT((TundideLoend[PÄEV]=Tunniplaan[[#Headers],[REEDE]])*(ROUNDDOWN($B11,10)>=ROUNDDOWN(TundideLoend[ALGUSKELLAAEG],10))*($B11<=TundideLoend[LÕPPKELLAAEG]),TundideLoend[KORDUMATU]),TundideLoend[KORDUMATU],0),2),0)","v":0},{"$f":"IFERROR(INDEX(TundideLoend[],MATCH(SUMPRODUCT((TundideLoend[PÄEV]=Tunniplaan[[#Headers],[LAUPÄEV]])*(ROUNDDOWN($B11,10)>=ROUNDDOWN(TundideLoend[ALGUSKELLAAEG],10))*($B11<=TundideLoend[LÕPPKELLAAEG]),TundideLoend[KORDUMATU]),TundideLoend[KORDUMATU],0),2),0)","v":0}]
[null,"10:00:00",{"$f":"IFERROR(INDEX(TundideLoend[],MATCH(SUMPRODUCT((TundideLoend[PÄEV]=Tunniplaan[[#Headers],[PÜHAPÄEV]])*(ROUNDDOWN($B12,10)>=ROUNDDOWN(TundideLoend[ALGUSKELLAAEG],10))*($B12<=TundideLoend[LÕPPKELLAAEG]),TundideLoend[KORDUMATU]),TundideLoend[KORDUMATU],0),2),0)","v":0},{"$f":"IFERROR(INDEX(TundideLoend[],MATCH(SUMPRODUCT((TundideLoend[PÄEV]=Tunniplaan[[#Headers],[ESMASPÄEV]])*(ROUNDDOWN($B12,10)>=ROUNDDOWN(TundideLoend[ALGUSKELLAAEG],10))*($B12<=TundideLoend[LÕPPKELLAAEG]),TundideLoend[KORDUMATU]),TundideLoend[KORDUMATU],0),2),0)","v":0},{"$f":"IFERROR(INDEX(TundideLoend[],MATCH(SUMPRODUCT((TundideLoend[PÄEV]=Tunniplaan[[#Headers],[TEISIPÄEV]])*(ROUNDDOWN($B12,10)>=ROUNDDOWN(TundideLoend[ALGUSKELLAAEG],10))*($B12<=TundideLoend[LÕPPKELLAAEG]),TundideLoend[KORDUMATU]),TundideLoend[KORDUMATU],0),2),0)","v":0},{"$f":"IFERROR(INDEX(TundideLoend[],MATCH(SUMPRODUCT((TundideLoend[PÄEV]=Tunniplaan[[#Headers],[KOLMAPÄEV]])*(ROUNDDOWN($B12,10)>=ROUNDDOWN(TundideLoend[ALGUSKELLAAEG],10))*($B12<=TundideLoend[LÕPPKELLAAEG]),TundideLoend[KORDUMATU]),TundideLoend[KORDUMATU],0),2),0)","v":0},{"$f":"IFERROR(INDEX(TundideLoend[],MATCH(SUMPRODUCT((TundideLoend[PÄEV]=Tunniplaan[[#Headers],[NELJAPÄEV]])*(ROUNDDOWN($B12,10)>=ROUNDDOWN(TundideLoend[ALGUSKELLAAEG],10))*($B12<=TundideLoend[LÕPPKELLAAEG]),TundideLoend[KORDUMATU]),TundideLoend[KORDUMATU],0),2),0)","v":0},{"$f":"IFERROR(INDEX(TundideLoend[],MATCH(SUMPRODUCT((TundideLoend[PÄEV]=Tunniplaan[[#Headers],[REEDE]])*(ROUNDDOWN($B12,10)>=ROUNDDOWN(TundideLoend[ALGUSKELLAAEG],10))*($B12<=TundideLoend[LÕPPKELLAAEG]),TundideLoend[KORDUMATU]),TundideLoend[KORDUMATU],0),2),0)","v":0},{"$f":"IFERROR(INDEX(TundideLoend[],MATCH(SUMPRODUCT((TundideLoend[PÄEV]=Tunniplaan[[#Headers],[LAUPÄEV]])*(ROUNDDOWN($B12,10)>=ROUNDDOWN(TundideLoend[ALGUSKELLAAEG],10))*($B12<=TundideLoend[LÕPPKELLAAEG]),TundideLoend[KORDUMATU]),TundideLoend[KORDUMATU],0),2),0)","v":0}]
[null,"10:15:00",{"$f":"IFERROR(INDEX(TundideLoend[],MATCH(SUMPRODUCT((TundideLoend[PÄEV]=Tunniplaan[[#Headers],[PÜHAPÄEV]])*(ROUNDDOWN($B13,10)>=ROUNDDOWN(TundideLoend[ALGUSKELLAAEG],10))*($B13<=TundideLoend[LÕPPKELLAAEG]),TundideLoend[KORDUMATU]),TundideLoend[KORDUMATU],0),2),0)","v":0},{"$f":"IFERROR(INDEX(TundideLoend[],MATCH(SUMPRODUCT((TundideLoend[PÄEV]=Tunniplaan[[#Headers],[ESMASPÄEV]])*(ROUNDDOWN($B13,10)>=ROUNDDOWN(TundideLoend[ALGUSKELLAAEG],10))*($B13<=TundideLoend[LÕPPKELLAAEG]),TundideLoend[KORDUMATU]),TundideLoend[KORDUMATU],0),2),0)","v":0},{"$f":"IFERROR(INDEX(TundideLoend[],MATCH(SUMPRODUCT((TundideLoend[PÄEV]=Tunniplaan[[#Headers],[TEISIPÄEV]])*(ROUNDDOWN($B13,10)>=ROUNDDOWN(TundideLoend[ALGUSKELLAAEG],10))*($B13<=TundideLoend[LÕPPKELLAAEG]),TundideLoend[KORDUMATU]),TundideLoend[KORDUMATU],0),2),0)","v":0},{"$f":"IFERROR(INDEX(TundideLoend[],MATCH(SUMPRODUCT((TundideLoend[PÄEV]=Tunniplaan[[#Headers],[KOLMAPÄEV]])*(ROUNDDOWN($B13,10)>=ROUNDDOWN(TundideLoend[ALGUSKELLAAEG],10))*($B13<=TundideLoend[LÕPPKELLAAEG]),TundideLoend[KORDUMATU]),TundideLoend[KORDUMATU],0),2),0)","v":0},{"$f":"IFERROR(INDEX(TundideLoend[],MATCH(SUMPRODUCT((TundideLoend[PÄEV]=Tunniplaan[[#Headers],[NELJAPÄEV]])*(ROUNDDOWN($B13,10)>=ROUNDDOWN(TundideLoend[ALGUSKELLAAEG],10))*($B13<=TundideLoend[LÕPPKELLAAEG]),TundideLoend[KORDUMATU]),TundideLoend[KORDUMATU],0),2),0)","v":0},{"$f":"IFERROR(INDEX(TundideLoend[],MATCH(SUMPRODUCT((TundideLoend[PÄEV]=Tunniplaan[[#Headers],[REEDE]])*(ROUNDDOWN($B13,10)>=ROUNDDOWN(TundideLoend[ALGUSKELLAAEG],10))*($B13<=TundideLoend[LÕPPKELLAAEG]),TundideLoend[KORDUMATU]),TundideLoend[KORDUMATU],0),2),0)","v":0},{"$f":"IFERROR(INDEX(TundideLoend[],MATCH(SUMPRODUCT((TundideLoend[PÄEV]=Tunniplaan[[#Headers],[LAUPÄEV]])*(ROUNDDOWN($B13,10)>=ROUNDDOWN(TundideLoend[ALGUSKELLAAEG],10))*($B13<=TundideLoend[LÕPPKELLAAEG]),TundideLoend[KORDUMATU]),TundideLoend[KORDUMATU],0),2),0)","v":0}]
[null,"10:30:00",{"$f":"IFERROR(INDEX(TundideLoend[],MATCH(SUMPRODUCT((TundideLoend[PÄEV]=Tunniplaan[[#Headers],[PÜHAPÄEV]])*(ROUNDDOWN($B14,10)>=ROUNDDOWN(TundideLoend[ALGUSKELLAAEG],10))*($B14<=TundideLoend[LÕPPKELLAAEG]),TundideLoend[KORDUMATU]),TundideLoend[KORDUMATU],0),2),0)","v":0},{"$f":"IFERROR(INDEX(TundideLoend[],MATCH(SUMPRODUCT((TundideLoend[PÄEV]=Tunniplaan[[#Headers],[ESMASPÄEV]])*(ROUNDDOWN($B14,10)>=ROUNDDOWN(TundideLoend[ALGUSKELLAAEG],10))*($B14<=TundideLoend[LÕPPKELLAAEG]),TundideLoend[KORDUMATU]),TundideLoend[KORDUMATU],0),2),0)","v":0},{"$f":"IFERROR(INDEX(TundideLoend[],MATCH(SUMPRODUCT((TundideLoend[PÄEV]=Tunniplaan[[#Headers],[TEISIPÄEV]])*(ROUNDDOWN($B14,10)>=ROUNDDOWN(TundideLoend[ALGUSKELLAAEG],10))*($B14<=TundideLoend[LÕPPKELLAAEG]),TundideLoend[KORDUMATU]),TundideLoend[KORDUMATU],0),2),0)","v":0},{"$f":"IFERROR(INDEX(TundideLoend[],MATCH(SUMPRODUCT((TundideLoend[PÄEV]=Tunniplaan[[#Headers],[KOLMAPÄEV]])*(ROUNDDOWN($B14,10)>=ROUNDDOWN(TundideLoend[ALGUSKELLAAEG],10))*($B14<=TundideLoend[LÕPPKELLAAEG]),TundideLoend[KORDUMATU]),TundideLoend[KORDUMATU],0),2),0)","v":0},{"$f":"IFERROR(INDEX(TundideLoend[],MATCH(SUMPRODUCT((TundideLoend[PÄEV]=Tunniplaan[[#Headers],[NELJAPÄEV]])*(ROUNDDOWN($B14,10)>=ROUNDDOWN(TundideLoend[ALGUSKELLAAEG],10))*($B14<=TundideLoend[LÕPPKELLAAEG]),TundideLoend[KORDUMATU]),TundideLoend[KORDUMATU],0),2),0)","v":0},{"$f":"IFERROR(INDEX(TundideLoend[],MATCH(SUMPRODUCT((TundideLoend[PÄEV]=Tunniplaan[[#Headers],[REEDE]])*(ROUNDDOWN($B14,10)>=ROUNDDOWN(TundideLoend[ALGUSKELLAAEG],10))*($B14<=TundideLoend[LÕPPKELLAAEG]),TundideLoend[KORDUMATU]),TundideLoend[KORDUMATU],0),2),0)","v":0},{"$f":"IFERROR(INDEX(TundideLoend[],MATCH(SUMPRODUCT((TundideLoend[PÄEV]=Tunniplaan[[#Headers],[LAUPÄEV]])*(ROUNDDOWN($B14,10)>=ROUNDDOWN(TundideLoend[ALGUSKELLAAEG],10))*($B14<=TundideLoend[LÕPPKELLAAEG]),TundideLoend[KORDUMATU]),TundideLoend[KORDUMATU],0),2),0)","v":0}]
[null,"10:45:00",{"$f":"IFERROR(INDEX(TundideLoend[],MATCH(SUMPRODUCT((TundideLoend[PÄEV]=Tunniplaan[[#Headers],[PÜHAPÄEV]])*(ROUNDDOWN($B15,10)>=ROUNDDOWN(TundideLoend[ALGUSKELLAAEG],10))*($B15<=TundideLoend[LÕPPKELLAAEG]),TundideLoend[KORDUMATU]),TundideLoend[KORDUMATU],0),2),0)","v":0},{"$f":"IFERROR(INDEX(TundideLoend[],MATCH(SUMPRODUCT((TundideLoend[PÄEV]=Tunniplaan[[#Headers],[ESMASPÄEV]])*(ROUNDDOWN($B15,10)>=ROUNDDOWN(TundideLoend[ALGUSKELLAAEG],10))*($B15<=TundideLoend[LÕPPKELLAAEG]),TundideLoend[KORDUMATU]),TundideLoend[KORDUMATU],0),2),0)","v":0},{"$f":"IFERROR(INDEX(TundideLoend[],MATCH(SUMPRODUCT((TundideLoend[PÄEV]=Tunniplaan[[#Headers],[TEISIPÄEV]])*(ROUNDDOWN($B15,10)>=ROUNDDOWN(TundideLoend[ALGUSKELLAAEG],10))*($B15<=TundideLoend[LÕPPKELLAAEG]),TundideLoend[KORDUMATU]),TundideLoend[KORDUMATU],0),2),0)","v":0},{"$f":"IFERROR(INDEX(TundideLoend[],MATCH(SUMPRODUCT((TundideLoend[PÄEV]=Tunniplaan[[#Headers],[KOLMAPÄEV]])*(ROUNDDOWN($B15,10)>=ROUNDDOWN(TundideLoend[ALGUSKELLAAEG],10))*($B15<=TundideLoend[LÕPPKELLAAEG]),TundideLoend[KORDUMATU]),TundideLoend[KORDUMATU],0),2),0)","v":0},{"$f":"IFERROR(INDEX(TundideLoend[],MATCH(SUMPRODUCT((TundideLoend[PÄEV]=Tunniplaan[[#Headers],[NELJAPÄEV]])*(ROUNDDOWN($B15,10)>=ROUNDDOWN(TundideLoend[ALGUSKELLAAEG],10))*($B15<=TundideLoend[LÕPPKELLAAEG]),TundideLoend[KORDUMATU]),TundideLoend[KORDUMATU],0),2),0)","v":0},{"$f":"IFERROR(INDEX(TundideLoend[],MATCH(SUMPRODUCT((TundideLoend[PÄEV]=Tunniplaan[[#Headers],[REEDE]])*(ROUNDDOWN($B15,10)>=ROUNDDOWN(TundideLoend[ALGUSKELLAAEG],10))*($B15<=TundideLoend[LÕPPKELLAAEG]),TundideLoend[KORDUMATU]),TundideLoend[KORDUMATU],0),2),0)","v":0},{"$f":"IFERROR(INDEX(TundideLoend[],MATCH(SUMPRODUCT((TundideLoend[PÄEV]=Tunniplaan[[#Headers],[LAUPÄEV]])*(ROUNDDOWN($B15,10)>=ROUNDDOWN(TundideLoend[ALGUSKELLAAEG],10))*($B15<=TundideLoend[LÕPPKELLAAEG]),TundideLoend[KORDUMATU]),TundideLoend[KORDUMATU],0),2),0)","v":0}]
[null,"11:00:00",{"$f":"IFERROR(INDEX(TundideLoend[],MATCH(SUMPRODUCT((TundideLoend[PÄEV]=Tunniplaan[[#Headers],[PÜHAPÄEV]])*(ROUNDDOWN($B16,10)>=ROUNDDOWN(TundideLoend[ALGUSKELLAAEG],10))*($B16<=TundideLoend[LÕPPKELLAAEG]),TundideLoend[KORDUMATU]),TundideLoend[KORDUMATU],0),2),0)","v":0},{"$f":"IFERROR(INDEX(TundideLoend[],MATCH(SUMPRODUCT((TundideLoend[PÄEV]=Tunniplaan[[#Headers],[ESMASPÄEV]])*(ROUNDDOWN($B16,10)>=ROUNDDOWN(TundideLoend[ALGUSKELLAAEG],10))*($B16<=TundideLoend[LÕPPKELLAAEG]),TundideLoend[KORDUMATU]),TundideLoend[KORDUMATU],0),2),0)","v":0},{"$f":"IFERROR(INDEX(TundideLoend[],MATCH(SUMPRODUCT((TundideLoend[PÄEV]=Tunniplaan[[#Headers],[TEISIPÄEV]])*(ROUNDDOWN($B16,10)>=ROUNDDOWN(TundideLoend[ALGUSKELLAAEG],10))*($B16<=TundideLoend[LÕPPKELLAAEG]),TundideLoend[KORDUMATU]),TundideLoend[KORDUMATU],0),2),0)","v":"HPE-295"},{"$f":"IFERROR(INDEX(TundideLoend[],MATCH(SUMPRODUCT((TundideLoend[PÄEV]=Tunniplaan[[#Headers],[KOLMAPÄEV]])*(ROUNDDOWN($B16,10)>=ROUNDDOWN(TundideLoend[ALGUSKELLAAEG],10))*($B16<=TundideLoend[LÕPPKELLAAEG]),TundideLoend[KORDUMATU]),TundideLoend[KORDUMATU],0),2),0)","v":0},{"$f":"IFERROR(INDEX(TundideLoend[],MATCH(SUMPRODUCT((TundideLoend[PÄEV]=Tunniplaan[[#Headers],[NELJAPÄEV]])*(ROUNDDOWN($B16,10)>=ROUNDDOWN(TundideLoend[ALGUSKELLAAEG],10))*($B16<=TundideLoend[LÕPPKELLAAEG]),TundideLoend[KORDUMATU]),TundideLoend[KORDUMATU],0),2),0)","v":"HPE-295"},{"$f":"IFERROR(INDEX(TundideLoend[],MATCH(SUMPRODUCT((TundideLoend[PÄEV]=Tunniplaan[[#Headers],[REEDE]])*(ROUNDDOWN($B16,10)>=ROUNDDOWN(TundideLoend[ALGUSKELLAAEG],10))*($B16<=TundideLoend[LÕPPKELLAAEG]),TundideLoend[KORDUMATU]),TundideLoend[KORDUMATU],0),2),0)","v":0},{"$f":"IFERROR(INDEX(TundideLoend[],MATCH(SUMPRODUCT((TundideLoend[PÄEV]=Tunniplaan[[#Headers],[LAUPÄEV]])*(ROUNDDOWN($B16,10)>=ROUNDDOWN(TundideLoend[ALGUSKELLAAEG],10))*($B16<=TundideLoend[LÕPPKELLAAEG]),TundideLoend[KORDUMATU]),TundideLoend[KORDUMATU],0),2),0)","v":0}]
[null,"11:15:00",{"$f":"IFERROR(INDEX(TundideLoend[],MATCH(SUMPRODUCT((TundideLoend[PÄEV]=Tunniplaan[[#Headers],[PÜHAPÄEV]])*(ROUNDDOWN($B17,10)>=ROUNDDOWN(TundideLoend[ALGUSKELLAAEG],10))*($B17<=TundideLoend[LÕPPKELLAAEG]),TundideLoend[KORDUMATU]),TundideLoend[KORDUMATU],0),2),0)","v":0},{"$f":"IFERROR(INDEX(TundideLoend[],MATCH(SUMPRODUCT((TundideLoend[PÄEV]=Tunniplaan[[#Headers],[ESMASPÄEV]])*(ROUNDDOWN($B17,10)>=ROUNDDOWN(TundideLoend[ALGUSKELLAAEG],10))*($B17<=TundideLoend[LÕPPKELLAAEG]),TundideLoend[KORDUMATU]),TundideLoend[KORDUMATU],0),2),0)","v":0},{"$f":"IFERROR(INDEX(TundideLoend[],MATCH(SUMPRODUCT((TundideLoend[PÄEV]=Tunniplaan[[#Headers],[TEISIPÄEV]])*(ROUNDDOWN($B17,10)>=ROUNDDOWN(TundideLoend[ALGUSKELLAAEG],10))*($B17<=TundideLoend[LÕPPKELLAAEG]),TundideLoend[KORDUMATU]),TundideLoend[KORDUMATU],0),2),0)","v":"HPE-295"},{"$f":"IFERROR(INDEX(TundideLoend[],MATCH(SUMPRODUCT((TundideLoend[PÄEV]=Tunniplaan[[#Headers],[KOLMAPÄEV]])*(ROUNDDOWN($B17,10)>=ROUNDDOWN(TundideLoend[ALGUSKELLAAEG],10))*($B17<=TundideLoend[LÕPPKELLAAEG]),TundideLoend[KORDUMATU]),TundideLoend[KORDUMATU],0),2),0)","v":0},{"$f":"IFERROR(INDEX(TundideLoend[],MATCH(SUMPRODUCT((TundideLoend[PÄEV]=Tunniplaan[[#Headers],[NELJAPÄEV]])*(ROUNDDOWN($B17,10)>=ROUNDDOWN(TundideLoend[ALGUSKELLAAEG],10))*($B17<=TundideLoend[LÕPPKELLAAEG]),TundideLoend[KORDUMATU]),TundideLoend[KORDUMATU],0),2),0)","v":"HPE-295"},{"$f":"IFERROR(INDEX(TundideLoend[],MATCH(SUMPRODUCT((TundideLoend[PÄEV]=Tunniplaan[[#Headers],[REEDE]])*(ROUNDDOWN($B17,10)>=ROUNDDOWN(TundideLoend[ALGUSKELLAAEG],10))*($B17<=TundideLoend[LÕPPKELLAAEG]),TundideLoend[KORDUMATU]),TundideLoend[KORDUMATU],0),2),0)","v":0},{"$f":"IFERROR(INDEX(TundideLoend[],MATCH(SUMPRODUCT((TundideLoend[PÄEV]=Tunniplaan[[#Headers],[LAUPÄEV]])*(ROUNDDOWN($B17,10)>=ROUNDDOWN(TundideLoend[ALGUSKELLAAEG],10))*($B17<=TundideLoend[LÕPPKELLAAEG]),TundideLoend[KORDUMATU]),TundideLoend[KORDUMATU],0),2),0)","v":0}]
[null,"11:30:00",{"$f":"IFERROR(INDEX(TundideLoend[],MATCH(SUMPRODUCT((TundideLoend[PÄEV]=Tunniplaan[[#Headers],[PÜHAPÄEV]])*(ROUNDDOWN($B18,10)>=ROUNDDOWN(TundideLoend[ALGUSKELLAAEG],10))*($B18<=TundideLoend[LÕPPKELLAAEG]),TundideLoend[KORDUMATU]),TundideLoend[KORDUMATU],0),2),0)","v":0},{"$f":"IFERROR(INDEX(TundideLoend[],MATCH(SUMPRODUCT((TundideLoend[PÄEV]=Tunniplaan[[#Headers],[ESMASPÄEV]])*(ROUNDDOWN($B18,10)>=ROUNDDOWN(TundideLoend[ALGUSKELLAAEG],10))*($B18<=TundideLoend[LÕPPKELLAAEG]),TundideLoend[KORDUMATU]),TundideLoend[KORDUMATU],0),2),0)","v":0},{"$f":"IFERROR(INDEX(TundideLoend[],MATCH(SUMPRODUCT((TundideLoend[PÄEV]=Tunniplaan[[#Headers],[TEISIPÄEV]])*(ROUNDDOWN($B18,10)>=ROUNDDOWN(TundideLoend[ALGUSKELLAAEG],10))*($B18<=TundideLoend[LÕPPKELLAAEG]),TundideLoend[KORDUMATU]),TundideLoend[KORDUMATU],0),2),0)","v":"HPE-295"},{"$f":"IFERROR(INDEX(TundideLoend[],MATCH(SUMPRODUCT((TundideLoend[PÄEV]=Tunniplaan[[#Headers],[KOLMAPÄEV]])*(ROUNDDOWN($B18,10)>=ROUNDDOWN(TundideLoend[ALGUSKELLAAEG],10))*($B18<=TundideLoend[LÕPPKELLAAEG]),TundideLoend[KORDUMATU]),TundideLoend[KORDUMATU],0),2),0)","v":0},{"$f":"IFERROR(INDEX(TundideLoend[],MATCH(SUMPRODUCT((TundideLoend[PÄEV]=Tunniplaan[[#Headers],[NELJAPÄEV]])*(ROUNDDOWN($B18,10)>=ROUNDDOWN(TundideLoend[ALGUSKELLAAEG],10))*($B18<=TundideLoend[LÕPPKELLAAEG]),TundideLoend[KORDUMATU]),TundideLoend[KORDUMATU],0),2),0)","v":"HPE-295"},{"$f":"IFERROR(INDEX(TundideLoend[],MATCH(SUMPRODUCT((TundideLoend[PÄEV]=Tunniplaan[[#Headers],[REEDE]])*(ROUNDDOWN($B18,10)>=ROUNDDOWN(TundideLoend[ALGUSKELLAAEG],10))*($B18<=TundideLoend[LÕPPKELLAAEG]),TundideLoend[KORDUMATU]),TundideLoend[KORDUMATU],0),2),0)","v":0},{"$f":"IFERROR(INDEX(TundideLoend[],MATCH(SUMPRODUCT((TundideLoend[PÄEV]=Tunniplaan[[#Headers],[LAUPÄEV]])*(ROUNDDOWN($B18,10)>=ROUNDDOWN(TundideLoend[ALGUSKELLAAEG],10))*($B18<=TundideLoend[LÕPPKELLAAEG]),TundideLoend[KORDUMATU]),TundideLoend[KORDUMATU],0),2),0)","v":0}]
[null,"11:45:00",{"$f":"IFERROR(INDEX(TundideLoend[],MATCH(SUMPRODUCT((TundideLoend[PÄEV]=Tunniplaan[[#Headers],[PÜHAPÄEV]])*(ROUNDDOWN($B19,10)>=ROUNDDOWN(TundideLoend[ALGUSKELLAAEG],10))*($B19<=TundideLoend[LÕPPKELLAAEG]),TundideLoend[KORDUMATU]),TundideLoend[KORDUMATU],0),2),0)","v":0},{"$f":"IFERROR(INDEX(TundideLoend[],MATCH(SUMPRODUCT((TundideLoend[PÄEV]=Tunniplaan[[#Headers],[ESMASPÄEV]])*(ROUNDDOWN($B19,10)>=ROUNDDOWN(TundideLoend[ALGUSKELLAAEG],10))*($B19<=TundideLoend[LÕPPKELLAAEG]),TundideLoend[KORDUMATU]),TundideLoend[KORDUMATU],0),2),0)","v":0},{"$f":"IFERROR(INDEX(TundideLoend[],MATCH(SUMPRODUCT((TundideLoend[PÄEV]=Tunniplaan[[#Headers],[TEISIPÄEV]])*(ROUNDDOWN($B19,10)>=ROUNDDOWN(TundideLoend[ALGUSKELLAAEG],10))*($B19<=TundideLoend[LÕPPKELLAAEG]),TundideLoend[KORDUMATU]),TundideLoend[KORDUMATU],0),2),0)","v":"HPE-295"},{"$f":"IFERROR(INDEX(TundideLoend[],MATCH(SUMPRODUCT((TundideLoend[PÄEV]=Tunniplaan[[#Headers],[KOLMAPÄEV]])*(ROUNDDOWN($B19,10)>=ROUNDDOWN(TundideLoend[ALGUSKELLAAEG],10))*($B19<=TundideLoend[LÕPPKELLAAEG]),TundideLoend[KORDUMATU]),TundideLoend[KORDUMATU],0),2),0)","v":0},{"$f":"IFERROR(INDEX(TundideLoend[],MATCH(SUMPRODUCT((TundideLoend[PÄEV]=Tunniplaan[[#Headers],[NELJAPÄEV]])*(ROUNDDOWN($B19,10)>=ROUNDDOWN(TundideLoend[ALGUSKELLAAEG],10))*($B19<=TundideLoend[LÕPPKELLAAEG]),TundideLoend[KORDUMATU]),TundideLoend[KORDUMATU],0),2),0)","v":"HPE-295"},{"$f":"IFERROR(INDEX(TundideLoend[],MATCH(SUMPRODUCT((TundideLoend[PÄEV]=Tunniplaan[[#Headers],[REEDE]])*(ROUNDDOWN($B19,10)>=ROUNDDOWN(TundideLoend[ALGUSKELLAAEG],10))*($B19<=TundideLoend[LÕPPKELLAAEG]),TundideLoend[KORDUMATU]),TundideLoend[KORDUMATU],0),2),0)","v":0},{"$f":"IFERROR(INDEX(TundideLoend[],MATCH(SUMPRODUCT((TundideLoend[PÄEV]=Tunniplaan[[#Headers],[LAUPÄEV]])*(ROUNDDOWN($B19,10)>=ROUNDDOWN(TundideLoend[ALGUSKELLAAEG],10))*($B19<=TundideLoend[LÕPPKELLAAEG]),TundideLoend[KORDUMATU]),TundideLoend[KORDUMATU],0),2),0)","v":0}]
[null,"12:00:00",{"$f":"IFERROR(INDEX(TundideLoend[],MATCH(SUMPRODUCT((TundideLoend[PÄEV]=Tunniplaan[[#Headers],[PÜHAPÄEV]])*(ROUNDDOWN($B20,10)>=ROUNDDOWN(TundideLoend[ALGUSKELLAAEG],10))*($B20<=TundideLoend[LÕPPKELLAAEG]),TundideLoend[KORDUMATU]),TundideLoend[KORDUMATU],0),2),0)","v":0},{"$f":"IFERROR(INDEX(TundideLoend[],MATCH(SUMPRODUCT((TundideLoend[PÄEV]=Tunniplaan[[#Headers],[ESMASPÄEV]])*(ROUNDDOWN($B20,10)>=ROUNDDOWN(TundideLoend[ALGUSKELLAAEG],10))*($B20<=TundideLoend[LÕPPKELLAAEG]),TundideLoend[KORDUMATU]),TundideLoend[KORDUMATU],0),2),0)","v":0},{"$f":"IFERROR(INDEX(TundideLoend[],MATCH(SUMPRODUCT((TundideLoend[PÄEV]=Tunniplaan[[#Headers],[TEISIPÄEV]])*(ROUNDDOWN($B20,10)>=ROUNDDOWN(TundideLoend[ALGUSKELLAAEG],10))*($B20<=TundideLoend[LÕPPKELLAAEG]),TundideLoend[KORDUMATU]),TundideLoend[KORDUMATU],0),2),0)","v":"HPE-295"},{"$f":"IFERROR(INDEX(TundideLoend[],MATCH(SUMPRODUCT((TundideLoend[PÄEV]=Tunniplaan[[#Headers],[KOLMAPÄEV]])*(ROUNDDOWN($B20,10)>=ROUNDDOWN(TundideLoend[ALGUSKELLAAEG],10))*($B20<=TundideLoend[LÕPPKELLAAEG]),TundideLoend[KORDUMATU]),TundideLoend[KORDUMATU],0),2),0)","v":0},{"$f":"IFERROR(INDEX(TundideLoend[],MATCH(SUMPRODUCT((TundideLoend[PÄEV]=Tunniplaan[[#Headers],[NELJAPÄEV]])*(ROUNDDOWN($B20,10)>=ROUNDDOWN(TundideLoend[ALGUSKELLAAEG],10))*($B20<=TundideLoend[LÕPPKELLAAEG]),TundideLoend[KORDUMATU]),TundideLoend[KORDUMATU],0),2),0)","v":"HPE-295"},{"$f":"IFERROR(INDEX(TundideLoend[],MATCH(SUMPRODUCT((TundideLoend[PÄEV]=Tunniplaan[[#Headers],[REEDE]])*(ROUNDDOWN($B20,10)>=ROUNDDOWN(TundideLoend[ALGUSKELLAAEG],10))*($B20<=TundideLoend[LÕPPKELLAAEG]),TundideLoend[KORDUMATU]),TundideLoend[KORDUMATU],0),2),0)","v":0},{"$f":"IFERROR(INDEX(TundideLoend[],MATCH(SUMPRODUCT((TundideLoend[PÄEV]=Tunniplaan[[#Headers],[LAUPÄEV]])*(ROUNDDOWN($B20,10)>=ROUNDDOWN(TundideLoend[ALGUSKELLAAEG],10))*($B20<=TundideLoend[LÕPPKELLAAEG]),TundideLoend[KORDUMATU]),TundideLoend[KORDUMATU],0),2),0)","v":0}]
[null,"12:15:00",{"$f":"IFERROR(INDEX(TundideLoend[],MATCH(SUMPRODUCT((TundideLoend[PÄEV]=Tunniplaan[[#Headers],[PÜHAPÄEV]])*(ROUNDDOWN($B21,10)>=ROUNDDOWN(TundideLoend[ALGUSKELLAAEG],10))*($B21<=TundideLoend[LÕPPKELLAAEG]),TundideLoend[KORDUMATU]),TundideLoend[KORDUMATU],0),2),0)","v":0},{"$f":"IFERROR(INDEX(TundideLoend[],MATCH(SUMPRODUCT((TundideLoend[PÄEV]=Tunniplaan[[#Headers],[ESMASPÄEV]])*(ROUNDDOWN($B21,10)>=ROUNDDOWN(TundideLoend[ALGUSKELLAAEG],10))*($B21<=TundideLoend[LÕPPKELLAAEG]),TundideLoend[KORDUMATU]),TundideLoend[KORDUMATU],0),2),0)","v":0},{"$f":"IFERROR(INDEX(TundideLoend[],MATCH(SUMPRODUCT((TundideLoend[PÄEV]=Tunniplaan[[#Headers],[TEISIPÄEV]])*(ROUNDDOWN($B21,10)>=ROUNDDOWN(TundideLoend[ALGUSKELLAAEG],10))*($B21<=TundideLoend[LÕPPKELLAAEG]),TundideLoend[KORDUMATU]),TundideLoend[KORDUMATU],0),2),0)","v":0},{"$f":"IFERROR(INDEX(TundideLoend[],MATCH(SUMPRODUCT((TundideLoend[PÄEV]=Tunniplaan[[#Headers],[KOLMAPÄEV]])*(ROUNDDOWN($B21,10)>=ROUNDDOWN(TundideLoend[ALGUSKELLAAEG],10))*($B21<=TundideLoend[LÕPPKELLAAEG]),TundideLoend[KORDUMATU]),TundideLoend[KORDUMATU],0),2),0)","v":0},{"$f":"IFERROR(INDEX(TundideLoend[],MATCH(SUMPRODUCT((TundideLoend[PÄEV]=Tunniplaan[[#Headers],[NELJAPÄEV]])*(ROUNDDOWN($B21,10)>=ROUNDDOWN(TundideLoend[ALGUSKELLAAEG],10))*($B21<=TundideLoend[LÕPPKELLAAEG]),TundideLoend[KORDUMATU]),TundideLoend[KORDUMATU],0),2),0)","v":0},{"$f":"IFERROR(INDEX(TundideLoend[],MATCH(SUMPRODUCT((TundideLoend[PÄEV]=Tunniplaan[[#Headers],[REEDE]])*(ROUNDDOWN($B21,10)>=ROUNDDOWN(TundideLoend[ALGUSKELLAAEG],10))*($B21<=TundideLoend[LÕPPKELLAAEG]),TundideLoend[KORDUMATU]),TundideLoend[KORDUMATU],0),2),0)","v":0},{"$f":"IFERROR(INDEX(TundideLoend[],MATCH(SUMPRODUCT((TundideLoend[PÄEV]=Tunniplaan[[#Headers],[LAUPÄEV]])*(ROUNDDOWN($B21,10)>=ROUNDDOWN(TundideLoend[ALGUSKELLAAEG],10))*($B21<=TundideLoend[LÕPPKELLAAEG]),TundideLoend[KORDUMATU]),TundideLoend[KORDUMATU],0),2),0)","v":0}]
[null,"12:30:00",{"$f":"IFERROR(INDEX(TundideLoend[],MATCH(SUMPRODUCT((TundideLoend[PÄEV]=Tunniplaan[[#Headers],[PÜHAPÄEV]])*(ROUNDDOWN($B22,10)>=ROUNDDOWN(TundideLoend[ALGUSKELLAAEG],10))*($B22<=TundideLoend[LÕPPKELLAAEG]),TundideLoend[KORDUMATU]),TundideLoend[KORDUMATU],0),2),0)","v":0},{"$f":"IFERROR(INDEX(TundideLoend[],MATCH(SUMPRODUCT((TundideLoend[PÄEV]=Tunniplaan[[#Headers],[ESMASPÄEV]])*(ROUNDDOWN($B22,10)>=ROUNDDOWN(TundideLoend[ALGUSKELLAAEG],10))*($B22<=TundideLoend[LÕPPKELLAAEG]),TundideLoend[KORDUMATU]),TundideLoend[KORDUMATU],0),2),0)","v":0},{"$f":"IFERROR(INDEX(TundideLoend[],MATCH(SUMPRODUCT((TundideLoend[PÄEV]=Tunniplaan[[#Headers],[TEISIPÄEV]])*(ROUNDDOWN($B22,10)>=ROUNDDOWN(TundideLoend[ALGUSKELLAAEG],10))*($B22<=TundideLoend[LÕPPKELLAAEG]),TundideLoend[KORDUMATU]),TundideLoend[KORDUMATU],0),2),0)","v":0},{"$f":"IFERROR(INDEX(TundideLoend[],MATCH(SUMPRODUCT((TundideLoend[PÄEV]=Tunniplaan[[#Headers],[KOLMAPÄEV]])*(ROUNDDOWN($B22,10)>=ROUNDDOWN(TundideLoend[ALGUSKELLAAEG],10))*($B22<=TundideLoend[LÕPPKELLAAEG]),TundideLoend[KORDUMATU]),TundideLoend[KORDUMATU],0),2),0)","v":0},{"$f":"IFERROR(INDEX(TundideLoend[],MATCH(SUMPRODUCT((TundideLoend[PÄEV]=Tunniplaan[[#Headers],[NELJAPÄEV]])*(ROUNDDOWN($B22,10)>=ROUNDDOWN(TundideLoend[ALGUSKELLAAEG],10))*($B22<=TundideLoend[LÕPPKELLAAEG]),TundideLoend[KORDUMATU]),TundideLoend[KORDUMATU],0),2),0)","v":0},{"$f":"IFERROR(INDEX(TundideLoend[],MATCH(SUMPRODUCT((TundideLoend[PÄEV]=Tunniplaan[[#Headers],[REEDE]])*(ROUNDDOWN($B22,10)>=ROUNDDOWN(TundideLoend[ALGUSKELLAAEG],10))*($B22<=TundideLoend[LÕPPKELLAAEG]),TundideLoend[KORDUMATU]),TundideLoend[KORDUMATU],0),2),0)","v":0},{"$f":"IFERROR(INDEX(TundideLoend[],MATCH(SUMPRODUCT((TundideLoend[PÄEV]=Tunniplaan[[#Headers],[LAUPÄEV]])*(ROUNDDOWN($B22,10)>=ROUNDDOWN(TundideLoend[ALGUSKELLAAEG],10))*($B22<=TundideLoend[LÕPPKELLAAEG]),TundideLoend[KORDUMATU]),TundideLoend[KORDUMATU],0),2),0)","v":0}]
[null,"12:45:00",{"$f":"IFERROR(INDEX(TundideLoend[],MATCH(SUMPRODUCT((TundideLoend[PÄEV]=Tunniplaan[[#Headers],[PÜHAPÄEV]])*(ROUNDDOWN($B23,10)>=ROUNDDOWN(TundideLoend[ALGUSKELLAAEG],10))*($B23<=TundideLoend[LÕPPKELLAAEG]),TundideLoend[KORDUMATU]),TundideLoend[KORDUMATU],0),2),0)","v":0},{"$f":"IFERROR(INDEX(TundideLoend[],MATCH(SUMPRODUCT((TundideLoend[PÄEV]=Tunniplaan[[#Headers],[ESMASPÄEV]])*(ROUNDDOWN($B23,10)>=ROUNDDOWN(TundideLoend[ALGUSKELLAAEG],10))*($B23<=TundideLoend[LÕPPKELLAAEG]),TundideLoend[KORDUMATU]),TundideLoend[KORDUMATU],0),2),0)","v":0},{"$f":"IFERROR(INDEX(TundideLoend[],MATCH(SUMPRODUCT((TundideLoend[PÄEV]=Tunniplaan[[#Headers],[TEISIPÄEV]])*(ROUNDDOWN($B23,10)>=ROUNDDOWN(TundideLoend[ALGUSKELLAAEG],10))*($B23<=TundideLoend[LÕPPKELLAAEG]),TundideLoend[KORDUMATU]),TundideLoend[KORDUMATU],0),2),0)","v":0},{"$f":"IFERROR(INDEX(TundideLoend[],MATCH(SUMPRODUCT((TundideLoend[PÄEV]=Tunniplaan[[#Headers],[KOLMAPÄEV]])*(ROUNDDOWN($B23,10)>=ROUNDDOWN(TundideLoend[ALGUSKELLAAEG],10))*($B23<=TundideLoend[LÕPPKELLAAEG]),TundideLoend[KORDUMATU]),TundideLoend[KORDUMATU],0),2),0)","v":0},{"$f":"IFERROR(INDEX(TundideLoend[],MATCH(SUMPRODUCT((TundideLoend[PÄEV]=Tunniplaan[[#Headers],[NELJAPÄEV]])*(ROUNDDOWN($B23,10)>=ROUNDDOWN(TundideLoend[ALGUSKELLAAEG],10))*($B23<=TundideLoend[LÕPPKELLAAEG]),TundideLoend[KORDUMATU]),TundideLoend[KORDUMATU],0),2),0)","v":0},{"$f":"IFERROR(INDEX(TundideLoend[],MATCH(SUMPRODUCT((TundideLoend[PÄEV]=Tunniplaan[[#Headers],[REEDE]])*(ROUNDDOWN($B23,10)>=ROUNDDOWN(TundideLoend[ALGUSKELLAAEG],10))*($B23<=TundideLoend[LÕPPKELLAAEG]),TundideLoend[KORDUMATU]),TundideLoend[KORDUMATU],0),2),0)","v":0},{"$f":"IFERROR(INDEX(TundideLoend[],MATCH(SUMPRODUCT((TundideLoend[PÄEV]=Tunniplaan[[#Headers],[LAUPÄEV]])*(ROUNDDOWN($B23,10)>=ROUNDDOWN(TundideLoend[ALGUSKELLAAEG],10))*($B23<=TundideLoend[LÕPPKELLAAEG]),TundideLoend[KORDUMATU]),TundideLoend[KORDUMATU],0),2),0)","v":0}]
[null,"13:00:00",{"$f":"IFERROR(INDEX(TundideLoend[],MATCH(SUMPRODUCT((TundideLoend[PÄEV]=Tunniplaan[[#Headers],[PÜHAPÄEV]])*(ROUNDDOWN($B24,10)>=ROUNDDOWN(TundideLoend[ALGUSKELLAAEG],10))*($B24<=TundideLoend[LÕPPKELLAAEG]),TundideLoend[KORDUMATU]),TundideLoend[KORDUMATU],0),2),0)","v":0},{"$f":"IFERROR(INDEX(TundideLoend[],MATCH(SUMPRODUCT((TundideLoend[PÄEV]=Tunniplaan[[#Headers],[ESMASPÄEV]])*(ROUNDDOWN($B24,10)>=ROUNDDOWN(TundideLoend[ALGUSKELLAAEG],10))*($B24<=TundideLoend[LÕPPKELLAAEG]),TundideLoend[KORDUMATU]),TundideLoend[KORDUMATU],0),2),0)","v":"WR-121"},{"$f":"IFERROR(INDEX(TundideLoend[],MATCH(SUMPRODUCT((TundideLoend[PÄEV]=Tunniplaan[[#Headers],[TEISIPÄEV]])*(ROUNDDOWN($B24,10)>=ROUNDDOWN(TundideLoend[ALGUSKELLAAEG],10))*($B24<=TundideLoend[LÕPPKELLAAEG]),TundideLoend[KORDUMATU]),TundideLoend[KORDUMATU],0),2),0)","v":0},{"$f":"IFERROR(INDEX(TundideLoend[],MATCH(SUMPRODUCT((TundideLoend[PÄEV]=Tunniplaan[[#Headers],[KOLMAPÄEV]])*(ROUNDDOWN($B24,10)>=ROUNDDOWN(TundideLoend[ALGUSKELLAAEG],10))*($B24<=TundideLoend[LÕPPKELLAAEG]),TundideLoend[KORDUMATU]),TundideLoend[KORDUMATU],0),2),0)","v":"WR-121"},{"$f":"IFERROR(INDEX(TundideLoend[],MATCH(SUMPRODUCT((TundideLoend[PÄEV]=Tunniplaan[[#Headers],[NELJAPÄEV]])*(ROUNDDOWN($B24,10)>=ROUNDDOWN(TundideLoend[ALGUSKELLAAEG],10))*($B24<=TundideLoend[LÕPPKELLAAEG]),TundideLoend[KORDUMATU]),TundideLoend[KORDUMATU],0),2),0)","v":0},{"$f":"IFERROR(INDEX(TundideLoend[],MATCH(SUMPRODUCT((TundideLoend[PÄEV]=Tunniplaan[[#Headers],[REEDE]])*(ROUNDDOWN($B24,10)>=ROUNDDOWN(TundideLoend[ALGUSKELLAAEG],10))*($B24<=TundideLoend[LÕPPKELLAAEG]),TundideLoend[KORDUMATU]),TundideLoend[KORDUMATU],0),2),0)","v":0},{"$f":"IFERROR(INDEX(TundideLoend[],MATCH(SUMPRODUCT((TundideLoend[PÄEV]=Tunniplaan[[#Headers],[LAUPÄEV]])*(ROUNDDOWN($B24,10)>=ROUNDDOWN(TundideLoend[ALGUSKELLAAEG],10))*($B24<=TundideLoend[LÕPPKELLAAEG]),TundideLoend[KORDUMATU]),TundideLoend[KORDUMATU],0),2),0)","v":0}]
[null,"13:15:00",{"$f":"IFERROR(INDEX(TundideLoend[],MATCH(SUMPRODUCT((TundideLoend[PÄEV]=Tunniplaan[[#Headers],[PÜHAPÄEV]])*(ROUNDDOWN($B25,10)>=ROUNDDOWN(TundideLoend[ALGUSKELLAAEG],10))*($B25<=TundideLoend[LÕPPKELLAAEG]),TundideLoend[KORDUMATU]),TundideLoend[KORDUMATU],0),2),0)","v":0},{"$f":"IFERROR(INDEX(TundideLoend[],MATCH(SUMPRODUCT((TundideLoend[PÄEV]=Tunniplaan[[#Headers],[ESMASPÄEV]])*(ROUNDDOWN($B25,10)>=ROUNDDOWN(TundideLoend[ALGUSKELLAAEG],10))*($B25<=TundideLoend[LÕPPKELLAAEG]),TundideLoend[KORDUMATU]),TundideLoend[KORDUMATU],0),2),0)","v":"WR-121"},{"$f":"IFERROR(INDEX(TundideLoend[],MATCH(SUMPRODUCT((TundideLoend[PÄEV]=Tunniplaan[[#Headers],[TEISIPÄEV]])*(ROUNDDOWN($B25,10)>=ROUNDDOWN(TundideLoend[ALGUSKELLAAEG],10))*($B25<=TundideLoend[LÕPPKELLAAEG]),TundideLoend[KORDUMATU]),TundideLoend[KORDUMATU],0),2),0)","v":0},{"$f":"IFERROR(INDEX(TundideLoend[],MATCH(SUMPRODUCT((TundideLoend[PÄEV]=Tunniplaan[[#Headers],[KOLMAPÄEV]])*(ROUNDDOWN($B25,10)>=ROUNDDOWN(TundideLoend[ALGUSKELLAAEG],10))*($B25<=TundideLoend[LÕPPKELLAAEG]),TundideLoend[KORDUMATU]),TundideLoend[KORDUMATU],0),2),0)","v":"WR-121"},{"$f":"IFERROR(INDEX(TundideLoend[],MATCH(SUMPRODUCT((TundideLoend[PÄEV]=Tunniplaan[[#Headers],[NELJAPÄEV]])*(ROUNDDOWN($B25,10)>=ROUNDDOWN(TundideLoend[ALGUSKELLAAEG],10))*($B25<=TundideLoend[LÕPPKELLAAEG]),TundideLoend[KORDUMATU]),TundideLoend[KORDUMATU],0),2),0)","v":0},{"$f":"IFERROR(INDEX(TundideLoend[],MATCH(SUMPRODUCT((TundideLoend[PÄEV]=Tunniplaan[[#Headers],[REEDE]])*(ROUNDDOWN($B25,10)>=ROUNDDOWN(TundideLoend[ALGUSKELLAAEG],10))*($B25<=TundideLoend[LÕPPKELLAAEG]),TundideLoend[KORDUMATU]),TundideLoend[KORDUMATU],0),2),0)","v":0},{"$f":"IFERROR(INDEX(TundideLoend[],MATCH(SUMPRODUCT((TundideLoend[PÄEV]=Tunniplaan[[#Headers],[LAUPÄEV]])*(ROUNDDOWN($B25,10)>=ROUNDDOWN(TundideLoend[ALGUSKELLAAEG],10))*($B25<=TundideLoend[LÕPPKELLAAEG]),TundideLoend[KORDUMATU]),TundideLoend[KORDUMATU],0),2),0)","v":0}]
[null,"13:30:00",{"$f":"IFERROR(INDEX(TundideLoend[],MATCH(SUMPRODUCT((TundideLoend[PÄEV]=Tunniplaan[[#Headers],[PÜHAPÄEV]])*(ROUNDDOWN($B26,10)>=ROUNDDOWN(TundideLoend[ALGUSKELLAAEG],10))*($B26<=TundideLoend[LÕPPKELLAAEG]),TundideLoend[KORDUMATU]),TundideLoend[KORDUMATU],0),2),0)","v":0},{"$f":"IFERROR(INDEX(TundideLoend[],MATCH(SUMPRODUCT((TundideLoend[PÄEV]=Tunniplaan[[#Headers],[ESMASPÄEV]])*(ROUNDDOWN($B26,10)>=ROUNDDOWN(TundideLoend[ALGUSKELLAAEG],10))*($B26<=TundideLoend[LÕPPKELLAAEG]),TundideLoend[KORDUMATU]),TundideLoend[KORDUMATU],0),2),0)","v":"WR-121"},{"$f":"IFERROR(INDEX(TundideLoend[],MATCH(SUMPRODUCT((TundideLoend[PÄEV]=Tunniplaan[[#Headers],[TEISIPÄEV]])*(ROUNDDOWN($B26,10)>=ROUNDDOWN(TundideLoend[ALGUSKELLAAEG],10))*($B26<=TundideLoend[LÕPPKELLAAEG]),TundideLoend[KORDUMATU]),TundideLoend[KORDUMATU],0),2),0)","v":0},{"$f":"IFERROR(INDEX(TundideLoend[],MATCH(SUMPRODUCT((TundideLoend[PÄEV]=Tunniplaan[[#Headers],[KOLMAPÄEV]])*(ROUNDDOWN($B26,10)>=ROUNDDOWN(TundideLoend[ALGUSKELLAAEG],10))*($B26<=TundideLoend[LÕPPKELLAAEG]),TundideLoend[KORDUMATU]),TundideLoend[KORDUMATU],0),2),0)","v":"WR-121"},{"$f":"IFERROR(INDEX(TundideLoend[],MATCH(SUMPRODUCT((TundideLoend[PÄEV]=Tunniplaan[[#Headers],[NELJAPÄEV]])*(ROUNDDOWN($B26,10)>=ROUNDDOWN(TundideLoend[ALGUSKELLAAEG],10))*($B26<=TundideLoend[LÕPPKELLAAEG]),TundideLoend[KORDUMATU]),TundideLoend[KORDUMATU],0),2),0)","v":0},{"$f":"IFERROR(INDEX(TundideLoend[],MATCH(SUMPRODUCT((TundideLoend[PÄEV]=Tunniplaan[[#Headers],[REEDE]])*(ROUNDDOWN($B26,10)>=ROUNDDOWN(TundideLoend[ALGUSKELLAAEG],10))*($B26<=TundideLoend[LÕPPKELLAAEG]),TundideLoend[KORDUMATU]),TundideLoend[KORDUMATU],0),2),0)","v":0},{"$f":"IFERROR(INDEX(TundideLoend[],MATCH(SUMPRODUCT((TundideLoend[PÄEV]=Tunniplaan[[#Headers],[LAUPÄEV]])*(ROUNDDOWN($B26,10)>=ROUNDDOWN(TundideLoend[ALGUSKELLAAEG],10))*($B26<=TundideLoend[LÕPPKELLAAEG]),TundideLoend[KORDUMATU]),TundideLoend[KORDUMATU],0),2),0)","v":0}]
[null,"13:45:00",{"$f":"IFERROR(INDEX(TundideLoend[],MATCH(SUMPRODUCT((TundideLoend[PÄEV]=Tunniplaan[[#Headers],[PÜHAPÄEV]])*(ROUNDDOWN($B27,10)>=ROUNDDOWN(TundideLoend[ALGUSKELLAAEG],10))*($B27<=TundideLoend[LÕPPKELLAAEG]),TundideLoend[KORDUMATU]),TundideLoend[KORDUMATU],0),2),0)","v":0},{"$f":"IFERROR(INDEX(TundideLoend[],MATCH(SUMPRODUCT((TundideLoend[PÄEV]=Tunniplaan[[#Headers],[ESMASPÄEV]])*(ROUNDDOWN($B27,10)>=ROUNDDOWN(TundideLoend[ALGUSKELLAAEG],10))*($B27<=TundideLoend[LÕPPKELLAAEG]),TundideLoend[KORDUMATU]),TundideLoend[KORDUMATU],0),2),0)","v":"WR-121"},{"$f":"IFERROR(INDEX(TundideLoend[],MATCH(SUMPRODUCT((TundideLoend[PÄEV]=Tunniplaan[[#Headers],[TEISIPÄEV]])*(ROUNDDOWN($B27,10)>=ROUNDDOWN(TundideLoend[ALGUSKELLAAEG],10))*($B27<=TundideLoend[LÕPPKELLAAEG]),TundideLoend[KORDUMATU]),TundideLoend[KORDUMATU],0),2),0)","v":0},{"$f":"IFERROR(INDEX(TundideLoend[],MATCH(SUMPRODUCT((TundideLoend[PÄEV]=Tunniplaan[[#Headers],[KOLMAPÄEV]])*(ROUNDDOWN($B27,10)>=ROUNDDOWN(TundideLoend[ALGUSKELLAAEG],10))*($B27<=TundideLoend[LÕPPKELLAAEG]),TundideLoend[KORDUMATU]),TundideLoend[KORDUMATU],0),2),0)","v":"WR-121"},{"$f":"IFERROR(INDEX(TundideLoend[],MATCH(SUMPRODUCT((TundideLoend[PÄEV]=Tunniplaan[[#Headers],[NELJAPÄEV]])*(ROUNDDOWN($B27,10)>=ROUNDDOWN(TundideLoend[ALGUSKELLAAEG],10))*($B27<=TundideLoend[LÕPPKELLAAEG]),TundideLoend[KORDUMATU]),TundideLoend[KORDUMATU],0),2),0)","v":0},{"$f":"IFERROR(INDEX(TundideLoend[],MATCH(SUMPRODUCT((TundideLoend[PÄEV]=Tunniplaan[[#Headers],[REEDE]])*(ROUNDDOWN($B27,10)>=ROUNDDOWN(TundideLoend[ALGUSKELLAAEG],10))*($B27<=TundideLoend[LÕPPKELLAAEG]),TundideLoend[KORDUMATU]),TundideLoend[KORDUMATU],0),2),0)","v":0},{"$f":"IFERROR(INDEX(TundideLoend[],MATCH(SUMPRODUCT((TundideLoend[PÄEV]=Tunniplaan[[#Headers],[LAUPÄEV]])*(ROUNDDOWN($B27,10)>=ROUNDDOWN(TundideLoend[ALGUSKELLAAEG],10))*($B27<=TundideLoend[LÕPPKELLAAEG]),TundideLoend[KORDUMATU]),TundideLoend[KORDUMATU],0),2),0)","v":0}]
[null,"14:00:00",{"$f":"IFERROR(INDEX(TundideLoend[],MATCH(SUMPRODUCT((TundideLoend[PÄEV]=Tunniplaan[[#Headers],[PÜHAPÄEV]])*(ROUNDDOWN($B28,10)>=ROUNDDOWN(TundideLoend[ALGUSKELLAAEG],10))*($B28<=TundideLoend[LÕPPKELLAAEG]),TundideLoend[KORDUMATU]),TundideLoend[KORDUMATU],0),2),0)","v":0},{"$f":"IFERROR(INDEX(TundideLoend[],MATCH(SUMPRODUCT((TundideLoend[PÄEV]=Tunniplaan[[#Headers],[ESMASPÄEV]])*(ROUNDDOWN($B28,10)>=ROUNDDOWN(TundideLoend[ALGUSKELLAAEG],10))*($B28<=TundideLoend[LÕPPKELLAAEG]),TundideLoend[KORDUMATU]),TundideLoend[KORDUMATU],0),2),0)","v":"WR-121"},{"$f":"IFERROR(INDEX(TundideLoend[],MATCH(SUMPRODUCT((TundideLoend[PÄEV]=Tunniplaan[[#Headers],[TEISIPÄEV]])*(ROUNDDOWN($B28,10)>=ROUNDDOWN(TundideLoend[ALGUSKELLAAEG],10))*($B28<=TundideLoend[LÕPPKELLAAEG]),TundideLoend[KORDUMATU]),TundideLoend[KORDUMATU],0),2),0)","v":0},{"$f":"IFERROR(INDEX(TundideLoend[],MATCH(SUMPRODUCT((TundideLoend[PÄEV]=Tunniplaan[[#Headers],[KOLMAPÄEV]])*(ROUNDDOWN($B28,10)>=ROUNDDOWN(TundideLoend[ALGUSKELLAAEG],10))*($B28<=TundideLoend[LÕPPKELLAAEG]),TundideLoend[KORDUMATU]),TundideLoend[KORDUMATU],0),2),0)","v":"WR-121"},{"$f":"IFERROR(INDEX(TundideLoend[],MATCH(SUMPRODUCT((TundideLoend[PÄEV]=Tunniplaan[[#Headers],[NELJAPÄEV]])*(ROUNDDOWN($B28,10)>=ROUNDDOWN(TundideLoend[ALGUSKELLAAEG],10))*($B28<=TundideLoend[LÕPPKELLAAEG]),TundideLoend[KORDUMATU]),TundideLoend[KORDUMATU],0),2),0)","v":0},{"$f":"IFERROR(INDEX(TundideLoend[],MATCH(SUMPRODUCT((TundideLoend[PÄEV]=Tunniplaan[[#Headers],[REEDE]])*(ROUNDDOWN($B28,10)>=ROUNDDOWN(TundideLoend[ALGUSKELLAAEG],10))*($B28<=TundideLoend[LÕPPKELLAAEG]),TundideLoend[KORDUMATU]),TundideLoend[KORDUMATU],0),2),0)","v":0},{"$f":"IFERROR(INDEX(TundideLoend[],MATCH(SUMPRODUCT((TundideLoend[PÄEV]=Tunniplaan[[#Headers],[LAUPÄEV]])*(ROUNDDOWN($B28,10)>=ROUNDDOWN(TundideLoend[ALGUSKELLAAEG],10))*($B28<=TundideLoend[LÕPPKELLAAEG]),TundideLoend[KORDUMATU]),TundideLoend[KORDUMATU],0),2),0)","v":0}]
[null,"14:15:00",{"$f":"IFERROR(INDEX(TundideLoend[],MATCH(SUMPRODUCT((TundideLoend[PÄEV]=Tunniplaan[[#Headers],[PÜHAPÄEV]])*(ROUNDDOWN($B29,10)>=ROUNDDOWN(TundideLoend[ALGUSKELLAAEG],10))*($B29<=TundideLoend[LÕPPKELLAAEG]),TundideLoend[KORDUMATU]),TundideLoend[KORDUMATU],0),2),0)","v":0},{"$f":"IFERROR(INDEX(TundideLoend[],MATCH(SUMPRODUCT((TundideLoend[PÄEV]=Tunniplaan[[#Headers],[ESMASPÄEV]])*(ROUNDDOWN($B29,10)>=ROUNDDOWN(TundideLoend[ALGUSKELLAAEG],10))*($B29<=TundideLoend[LÕPPKELLAAEG]),TundideLoend[KORDUMATU]),TundideLoend[KORDUMATU],0),2),0)","v":0},{"$f":"IFERROR(INDEX(TundideLoend[],MATCH(SUMPRODUCT((TundideLoend[PÄEV]=Tunniplaan[[#Headers],[TEISIPÄEV]])*(ROUNDDOWN($B29,10)>=ROUNDDOWN(TundideLoend[ALGUSKELLAAEG],10))*($B29<=TundideLoend[LÕPPKELLAAEG]),TundideLoend[KORDUMATU]),TundideLoend[KORDUMATU],0),2),0)","v":0},{"$f":"IFERROR(INDEX(TundideLoend[],MATCH(SUMPRODUCT((TundideLoend[PÄEV]=Tunniplaan[[#Headers],[KOLMAPÄEV]])*(ROUNDDOWN($B29,10)>=ROUNDDOWN(TundideLoend[ALGUSKELLAAEG],10))*($B29<=TundideLoend[LÕPPKELLAAEG]),TundideLoend[KORDUMATU]),TundideLoend[KORDUMATU],0),2),0)","v":0},{"$f":"IFERROR(INDEX(TundideLoend[],MATCH(SUMPRODUCT((TundideLoend[PÄEV]=Tunniplaan[[#Headers],[NELJAPÄEV]])*(ROUNDDOWN($B29,10)>=ROUNDDOWN(TundideLoend[ALGUSKELLAAEG],10))*($B29<=TundideLoend[LÕPPKELLAAEG]),TundideLoend[KORDUMATU]),TundideLoend[KORDUMATU],0),2),0)","v":0},{"$f":"IFERROR(INDEX(TundideLoend[],MATCH(SUMPRODUCT((TundideLoend[PÄEV]=Tunniplaan[[#Headers],[REEDE]])*(ROUNDDOWN($B29,10)>=ROUNDDOWN(TundideLoend[ALGUSKELLAAEG],10))*($B29<=TundideLoend[LÕPPKELLAAEG]),TundideLoend[KORDUMATU]),TundideLoend[KORDUMATU],0),2),0)","v":0},{"$f":"IFERROR(INDEX(TundideLoend[],MATCH(SUMPRODUCT((TundideLoend[PÄEV]=Tunniplaan[[#Headers],[LAUPÄEV]])*(ROUNDDOWN($B29,10)>=ROUNDDOWN(TundideLoend[ALGUSKELLAAEG],10))*($B29<=TundideLoend[LÕPPKELLAAEG]),TundideLoend[KORDUMATU]),TundideLoend[KORDUMATU],0),2),0)","v":0}]
[null,"14:30:00",{"$f":"IFERROR(INDEX(TundideLoend[],MATCH(SUMPRODUCT((TundideLoend[PÄEV]=Tunniplaan[[#Headers],[PÜHAPÄEV]])*(ROUNDDOWN($B30,10)>=ROUNDDOWN(TundideLoend[ALGUSKELLAAEG],10))*($B30<=TundideLoend[LÕPPKELLAAEG]),TundideLoend[KORDUMATU]),TundideLoend[KORDUMATU],0),2),0)","v":0},{"$f":"IFERROR(INDEX(TundideLoend[],MATCH(SUMPRODUCT((TundideLoend[PÄEV]=Tunniplaan[[#Headers],[ESMASPÄEV]])*(ROUNDDOWN($B30,10)>=ROUNDDOWN(TundideLoend[ALGUSKELLAAEG],10))*($B30<=TundideLoend[LÕPPKELLAAEG]),TundideLoend[KORDUMATU]),TundideLoend[KORDUMATU],0),2),0)","v":0},{"$f":"IFERROR(INDEX(TundideLoend[],MATCH(SUMPRODUCT((TundideLoend[PÄEV]=Tunniplaan[[#Headers],[TEISIPÄEV]])*(ROUNDDOWN($B30,10)>=ROUNDDOWN(TundideLoend[ALGUSKELLAAEG],10))*($B30<=TundideLoend[LÕPPKELLAAEG]),TundideLoend[KORDUMATU]),TundideLoend[KORDUMATU],0),2),0)","v":0},{"$f":"IFERROR(INDEX(TundideLoend[],MATCH(SUMPRODUCT((TundideLoend[PÄEV]=Tunniplaan[[#Headers],[KOLMAPÄEV]])*(ROUNDDOWN($B30,10)>=ROUNDDOWN(TundideLoend[ALGUSKELLAAEG],10))*($B30<=TundideLoend[LÕPPKELLAAEG]),TundideLoend[KORDUMATU]),TundideLoend[KORDUMATU],0),2),0)","v":0},{"$f":"IFERROR(INDEX(TundideLoend[],MATCH(SUMPRODUCT((TundideLoend[PÄEV]=Tunniplaan[[#Headers],[NELJAPÄEV]])*(ROUNDDOWN($B30,10)>=ROUNDDOWN(TundideLoend[ALGUSKELLAAEG],10))*($B30<=TundideLoend[LÕPPKELLAAEG]),TundideLoend[KORDUMATU]),TundideLoend[KORDUMATU],0),2),0)","v":0},{"$f":"IFERROR(INDEX(TundideLoend[],MATCH(SUMPRODUCT((TundideLoend[PÄEV]=Tunniplaan[[#Headers],[REEDE]])*(ROUNDDOWN($B30,10)>=ROUNDDOWN(TundideLoend[ALGUSKELLAAEG],10))*($B30<=TundideLoend[LÕPPKELLAAEG]),TundideLoend[KORDUMATU]),TundideLoend[KORDUMATU],0),2),0)","v":0},{"$f":"IFERROR(INDEX(TundideLoend[],MATCH(SUMPRODUCT((TundideLoend[PÄEV]=Tunniplaan[[#Headers],[LAUPÄEV]])*(ROUNDDOWN($B30,10)>=ROUNDDOWN(TundideLoend[ALGUSKELLAAEG],10))*($B30<=TundideLoend[LÕPPKELLAAEG]),TundideLoend[KORDUMATU]),TundideLoend[KORDUMATU],0),2),0)","v":0}]
[null,"14:45:00",{"$f":"IFERROR(INDEX(TundideLoend[],MATCH(SUMPRODUCT((TundideLoend[PÄEV]=Tunniplaan[[#Headers],[PÜHAPÄEV]])*(ROUNDDOWN($B31,10)>=ROUNDDOWN(TundideLoend[ALGUSKELLAAEG],10))*($B31<=TundideLoend[LÕPPKELLAAEG]),TundideLoend[KORDUMATU]),TundideLoend[KORDUMATU],0),2),0)","v":0},{"$f":"IFERROR(INDEX(TundideLoend[],MATCH(SUMPRODUCT((TundideLoend[PÄEV]=Tunniplaan[[#Headers],[ESMASPÄEV]])*(ROUNDDOWN($B31,10)>=ROUNDDOWN(TundideLoend[ALGUSKELLAAEG],10))*($B31<=TundideLoend[LÕPPKELLAAEG]),TundideLoend[KORDUMATU]),TundideLoend[KORDUMATU],0),2),0)","v":0},{"$f":"IFERROR(INDEX(TundideLoend[],MATCH(SUMPRODUCT((TundideLoend[PÄEV]=Tunniplaan[[#Headers],[TEISIPÄEV]])*(ROUNDDOWN($B31,10)>=ROUNDDOWN(TundideLoend[ALGUSKELLAAEG],10))*($B31<=TundideLoend[LÕPPKELLAAEG]),TundideLoend[KORDUMATU]),TundideLoend[KORDUMATU],0),2),0)","v":0},{"$f":"IFERROR(INDEX(TundideLoend[],MATCH(SUMPRODUCT((TundideLoend[PÄEV]=Tunniplaan[[#Headers],[KOLMAPÄEV]])*(ROUNDDOWN($B31,10)>=ROUNDDOWN(TundideLoend[ALGUSKELLAAEG],10))*($B31<=TundideLoend[LÕPPKELLAAEG]),TundideLoend[KORDUMATU]),TundideLoend[KORDUMATU],0),2),0)","v":0},{"$f":"IFERROR(INDEX(TundideLoend[],MATCH(SUMPRODUCT((TundideLoend[PÄEV]=Tunniplaan[[#Headers],[NELJAPÄEV]])*(ROUNDDOWN($B31,10)>=ROUNDDOWN(TundideLoend[ALGUSKELLAAEG],10))*($B31<=TundideLoend[LÕPPKELLAAEG]),TundideLoend[KORDUMATU]),TundideLoend[KORDUMATU],0),2),0)","v":0},{"$f":"IFERROR(INDEX(TundideLoend[],MATCH(SUMPRODUCT((TundideLoend[PÄEV]=Tunniplaan[[#Headers],[REEDE]])*(ROUNDDOWN($B31,10)>=ROUNDDOWN(TundideLoend[ALGUSKELLAAEG],10))*($B31<=TundideLoend[LÕPPKELLAAEG]),TundideLoend[KORDUMATU]),TundideLoend[KORDUMATU],0),2),0)","v":0},{"$f":"IFERROR(INDEX(TundideLoend[],MATCH(SUMPRODUCT((TundideLoend[PÄEV]=Tunniplaan[[#Headers],[LAUPÄEV]])*(ROUNDDOWN($B31,10)>=ROUNDDOWN(TundideLoend[ALGUSKELLAAEG],10))*($B31<=TundideLoend[LÕPPKELLAAEG]),TundideLoend[KORDUMATU]),TundideLoend[KORDUMATU],0),2),0)","v":0}]
[null,"15:00:00",{"$f":"IFERROR(INDEX(TundideLoend[],MATCH(SUMPRODUCT((TundideLoend[PÄEV]=Tunniplaan[[#Headers],[PÜHAPÄEV]])*(ROUNDDOWN($B32,10)>=ROUNDDOWN(TundideLoend[ALGUSKELLAAEG],10))*($B32<=TundideLoend[LÕPPKELLAAEG]),TundideLoend[KORDUMATU]),TundideLoend[KORDUMATU],0),2),0)","v":0},{"$f":"IFERROR(INDEX(TundideLoend[],MATCH(SUMPRODUCT((TundideLoend[PÄEV]=Tunniplaan[[#Headers],[ESMASPÄEV]])*(ROUNDDOWN($B32,10)>=ROUNDDOWN(TundideLoend[ALGUSKELLAAEG],10))*($B32<=TundideLoend[LÕPPKELLAAEG]),TundideLoend[KORDUMATU]),TundideLoend[KORDUMATU],0),2),0)","v":0},{"$f":"IFERROR(INDEX(TundideLoend[],MATCH(SUMPRODUCT((TundideLoend[PÄEV]=Tunniplaan[[#Headers],[TEISIPÄEV]])*(ROUNDDOWN($B32,10)>=ROUNDDOWN(TundideLoend[ALGUSKELLAAEG],10))*($B32<=TundideLoend[LÕPPKELLAAEG]),TundideLoend[KORDUMATU]),TundideLoend[KORDUMATU],0),2),0)","v":0},{"$f":"IFERROR(INDEX(TundideLoend[],MATCH(SUMPRODUCT((TundideLoend[PÄEV]=Tunniplaan[[#Headers],[KOLMAPÄEV]])*(ROUNDDOWN($B32,10)>=ROUNDDOWN(TundideLoend[ALGUSKELLAAEG],10))*($B32<=TundideLoend[LÕPPKELLAAEG]),TundideLoend[KORDUMATU]),TundideLoend[KORDUMATU],0),2),0)","v":0},{"$f":"IFERROR(INDEX(TundideLoend[],MATCH(SUMPRODUCT((TundideLoend[PÄEV]=Tunniplaan[[#Headers],[NELJAPÄEV]])*(ROUNDDOWN($B32,10)>=ROUNDDOWN(TundideLoend[ALGUSKELLAAEG],10))*($B32<=TundideLoend[LÕPPKELLAAEG]),TundideLoend[KORDUMATU]),TundideLoend[KORDUMATU],0),2),0)","v":0},{"$f":"IFERROR(INDEX(TundideLoend[],MATCH(SUMPRODUCT((TundideLoend[PÄEV]=Tunniplaan[[#Headers],[REEDE]])*(ROUNDDOWN($B32,10)>=ROUNDDOWN(TundideLoend[ALGUSKELLAAEG],10))*($B32<=TundideLoend[LÕPPKELLAAEG]),TundideLoend[KORDUMATU]),TundideLoend[KORDUMATU],0),2),0)","v":0},{"$f":"IFERROR(INDEX(TundideLoend[],MATCH(SUMPRODUCT((TundideLoend[PÄEV]=Tunniplaan[[#Headers],[LAUPÄEV]])*(ROUNDDOWN($B32,10)>=ROUNDDOWN(TundideLoend[ALGUSKELLAAEG],10))*($B32<=TundideLoend[LÕPPKELLAAEG]),TundideLoend[KORDUMATU]),TundideLoend[KORDUMATU],0),2),0)","v":0}]
[null,"15:15:00",{"$f":"IFERROR(INDEX(TundideLoend[],MATCH(SUMPRODUCT((TundideLoend[PÄEV]=Tunniplaan[[#Headers],[PÜHAPÄEV]])*(ROUNDDOWN($B33,10)>=ROUNDDOWN(TundideLoend[ALGUSKELLAAEG],10))*($B33<=TundideLoend[LÕPPKELLAAEG]),TundideLoend[KORDUMATU]),TundideLoend[KORDUMATU],0),2),0)","v":0},{"$f":"IFERROR(INDEX(TundideLoend[],MATCH(SUMPRODUCT((TundideLoend[PÄEV]=Tunniplaan[[#Headers],[ESMASPÄEV]])*(ROUNDDOWN($B33,10)>=ROUNDDOWN(TundideLoend[ALGUSKELLAAEG],10))*($B33<=TundideLoend[LÕPPKELLAAEG]),TundideLoend[KORDUMATU]),TundideLoend[KORDUMATU],0),2),0)","v":0},{"$f":"IFERROR(INDEX(TundideLoend[],MATCH(SUMPRODUCT((TundideLoend[PÄEV]=Tunniplaan[[#Headers],[TEISIPÄEV]])*(ROUNDDOWN($B33,10)>=ROUNDDOWN(TundideLoend[ALGUSKELLAAEG],10))*($B33<=TundideLoend[LÕPPKELLAAEG]),TundideLoend[KORDUMATU]),TundideLoend[KORDUMATU],0),2),0)","v":0},{"$f":"IFERROR(INDEX(TundideLoend[],MATCH(SUMPRODUCT((TundideLoend[PÄEV]=Tunniplaan[[#Headers],[KOLMAPÄEV]])*(ROUNDDOWN($B33,10)>=ROUNDDOWN(TundideLoend[ALGUSKELLAAEG],10))*($B33<=TundideLoend[LÕPPKELLAAEG]),TundideLoend[KORDUMATU]),TundideLoend[KORDUMATU],0),2),0)","v":0},{"$f":"IFERROR(INDEX(TundideLoend[],MATCH(SUMPRODUCT((TundideLoend[PÄEV]=Tunniplaan[[#Headers],[NELJAPÄEV]])*(ROUNDDOWN($B33,10)>=ROUNDDOWN(TundideLoend[ALGUSKELLAAEG],10))*($B33<=TundideLoend[LÕPPKELLAAEG]),TundideLoend[KORDUMATU]),TundideLoend[KORDUMATU],0),2),0)","v":0},{"$f":"IFERROR(INDEX(TundideLoend[],MATCH(SUMPRODUCT((TundideLoend[PÄEV]=Tunniplaan[[#Headers],[REEDE]])*(ROUNDDOWN($B33,10)>=ROUNDDOWN(TundideLoend[ALGUSKELLAAEG],10))*($B33<=TundideLoend[LÕPPKELLAAEG]),TundideLoend[KORDUMATU]),TundideLoend[KORDUMATU],0),2),0)","v":0},{"$f":"IFERROR(INDEX(TundideLoend[],MATCH(SUMPRODUCT((TundideLoend[PÄEV]=Tunniplaan[[#Headers],[LAUPÄEV]])*(ROUNDDOWN($B33,10)>=ROUNDDOWN(TundideLoend[ALGUSKELLAAEG],10))*($B33<=TundideLoend[LÕPPKELLAAEG]),TundideLoend[KORDUMATU]),TundideLoend[KORDUMATU],0),2),0)","v":0}]
[null,"15:30:00",{"$f":"IFERROR(INDEX(TundideLoend[],MATCH(SUMPRODUCT((TundideLoend[PÄEV]=Tunniplaan[[#Headers],[PÜHAPÄEV]])*(ROUNDDOWN($B34,10)>=ROUNDDOWN(TundideLoend[ALGUSKELLAAEG],10))*($B34<=TundideLoend[LÕPPKELLAAEG]),TundideLoend[KORDUMATU]),TundideLoend[KORDUMATU],0),2),0)","v":0},{"$f":"IFERROR(INDEX(TundideLoend[],MATCH(SUMPRODUCT((TundideLoend[PÄEV]=Tunniplaan[[#Headers],[ESMASPÄEV]])*(ROUNDDOWN($B34,10)>=ROUNDDOWN(TundideLoend[ALGUSKELLAAEG],10))*($B34<=TundideLoend[LÕPPKELLAAEG]),TundideLoend[KORDUMATU]),TundideLoend[KORDUMATU],0),2),0)","v":0},{"$f":"IFERROR(INDEX(TundideLoend[],MATCH(SUMPRODUCT((TundideLoend[PÄEV]=Tunniplaan[[#Headers],[TEISIPÄEV]])*(ROUNDDOWN($B34,10)>=ROUNDDOWN(TundideLoend[ALGUSKELLAAEG],10))*($B34<=TundideLoend[LÕPPKELLAAEG]),TundideLoend[KORDUMATU]),TundideLoend[KORDUMATU],0),2),0)","v":0},{"$f":"IFERROR(INDEX(TundideLoend[],MATCH(SUMPRODUCT((TundideLoend[PÄEV]=Tunniplaan[[#Headers],[KOLMAPÄEV]])*(ROUNDDOWN($B34,10)>=ROUNDDOWN(TundideLoend[ALGUSKELLAAEG],10))*($B34<=TundideLoend[LÕPPKELLAAEG]),TundideLoend[KORDUMATU]),TundideLoend[KORDUMATU],0),2),0)","v":0},{"$f":"IFERROR(INDEX(TundideLoend[],MATCH(SUMPRODUCT((TundideLoend[PÄEV]=Tunniplaan[[#Headers],[NELJAPÄEV]])*(ROUNDDOWN($B34,10)>=ROUNDDOWN(TundideLoend[ALGUSKELLAAEG],10))*($B34<=TundideLoend[LÕPPKELLAAEG]),TundideLoend[KORDUMATU]),TundideLoend[KORDUMATU],0),2),0)","v":0},{"$f":"IFERROR(INDEX(TundideLoend[],MATCH(SUMPRODUCT((TundideLoend[PÄEV]=Tunniplaan[[#Headers],[REEDE]])*(ROUNDDOWN($B34,10)>=ROUNDDOWN(TundideLoend[ALGUSKELLAAEG],10))*($B34<=TundideLoend[LÕPPKELLAAEG]),TundideLoend[KORDUMATU]),TundideLoend[KORDUMATU],0),2),0)","v":0},{"$f":"IFERROR(INDEX(TundideLoend[],MATCH(SUMPRODUCT((TundideLoend[PÄEV]=Tunniplaan[[#Headers],[LAUPÄEV]])*(ROUNDDOWN($B34,10)>=ROUNDDOWN(TundideLoend[ALGUSKELLAAEG],10))*($B34<=TundideLoend[LÕPPKELLAAEG]),TundideLoend[KORDUMATU]),TundideLoend[KORDUMATU],0),2),0)","v":0}]
[null,"15:45:00",{"$f":"IFERROR(INDEX(TundideLoend[],MATCH(SUMPRODUCT((TundideLoend[PÄEV]=Tunniplaan[[#Headers],[PÜHAPÄEV]])*(ROUNDDOWN($B35,10)>=ROUNDDOWN(TundideLoend[ALGUSKELLAAEG],10))*($B35<=TundideLoend[LÕPPKELLAAEG]),TundideLoend[KORDUMATU]),TundideLoend[KORDUMATU],0),2),0)","v":0},{"$f":"IFERROR(INDEX(TundideLoend[],MATCH(SUMPRODUCT((TundideLoend[PÄEV]=Tunniplaan[[#Headers],[ESMASPÄEV]])*(ROUNDDOWN($B35,10)>=ROUNDDOWN(TundideLoend[ALGUSKELLAAEG],10))*($B35<=TundideLoend[LÕPPKELLAAEG]),TundideLoend[KORDUMATU]),TundideLoend[KORDUMATU],0),2),0)","v":0},{"$f":"IFERROR(INDEX(TundideLoend[],MATCH(SUMPRODUCT((TundideLoend[PÄEV]=Tunniplaan[[#Headers],[TEISIPÄEV]])*(ROUNDDOWN($B35,10)>=ROUNDDOWN(TundideLoend[ALGUSKELLAAEG],10))*($B35<=TundideLoend[LÕPPKELLAAEG]),TundideLoend[KORDUMATU]),TundideLoend[KORDUMATU],0),2),0)","v":0},{"$f":"IFERROR(INDEX(TundideLoend[],MATCH(SUMPRODUCT((TundideLoend[PÄEV]=Tunniplaan[[#Headers],[KOLMAPÄEV]])*(ROUNDDOWN($B35,10)>=ROUNDDOWN(TundideLoend[ALGUSKELLAAEG],10))*($B35<=TundideLoend[LÕPPKELLAAEG]),TundideLoend[KORDUMATU]),TundideLoend[KORDUMATU],0),2),0)","v":0},{"$f":"IFERROR(INDEX(TundideLoend[],MATCH(SUMPRODUCT((TundideLoend[PÄEV]=Tunniplaan[[#Headers],[NELJAPÄEV]])*(ROUNDDOWN($B35,10)>=ROUNDDOWN(TundideLoend[ALGUSKELLAAEG],10))*($B35<=TundideLoend[LÕPPKELLAAEG]),TundideLoend[KORDUMATU]),TundideLoend[KORDUMATU],0),2),0)","v":0},{"$f":"IFERROR(INDEX(TundideLoend[],MATCH(SUMPRODUCT((TundideLoend[PÄEV]=Tunniplaan[[#Headers],[REEDE]])*(ROUNDDOWN($B35,10)>=ROUNDDOWN(TundideLoend[ALGUSKELLAAEG],10))*($B35<=TundideLoend[LÕPPKELLAAEG]),TundideLoend[KORDUMATU]),TundideLoend[KORDUMATU],0),2),0)","v":0},{"$f":"IFERROR(INDEX(TundideLoend[],MATCH(SUMPRODUCT((TundideLoend[PÄEV]=Tunniplaan[[#Headers],[LAUPÄEV]])*(ROUNDDOWN($B35,10)>=ROUNDDOWN(TundideLoend[ALGUSKELLAAEG],10))*($B35<=TundideLoend[LÕPPKELLAAEG]),TundideLoend[KORDUMATU]),TundideLoend[KORDUMATU],0),2),0)","v":0}]
[null,"16:00:00",{"$f":"IFERROR(INDEX(TundideLoend[],MATCH(SUMPRODUCT((TundideLoend[PÄEV]=Tunniplaan[[#Headers],[PÜHAPÄEV]])*(ROUNDDOWN($B36,10)>=ROUNDDOWN(TundideLoend[ALGUSKELLAAEG],10))*($B36<=TundideLoend[LÕPPKELLAAEG]),TundideLoend[KORDUMATU]),TundideLoend[KORDUMATU],0),2),0)","v":0},{"$f":"IFERROR(INDEX(TundideLoend[],MATCH(SUMPRODUCT((TundideLoend[PÄEV]=Tunniplaan[[#Headers],[ESMASPÄEV]])*(ROUNDDOWN($B36,10)>=ROUNDDOWN(TundideLoend[ALGUSKELLAAEG],10))*($B36<=TundideLoend[LÕPPKELLAAEG]),TundideLoend[KORDUMATU]),TundideLoend[KORDUMATU],0),2),0)","v":"SP-111"},{"$f":"IFERROR(INDEX(TundideLoend[],MATCH(SUMPRODUCT((TundideLoend[PÄEV]=Tunniplaan[[#Headers],[TEISIPÄEV]])*(ROUNDDOWN($B36,10)>=ROUNDDOWN(TundideLoend[ALGUSKELLAAEG],10))*($B36<=TundideLoend[LÕPPKELLAAEG]),TundideLoend[KORDUMATU]),TundideLoend[KORDUMATU],0),2),0)","v":0},{"$f":"IFERROR(INDEX(TundideLoend[],MATCH(SUMPRODUCT((TundideLoend[PÄEV]=Tunniplaan[[#Headers],[KOLMAPÄEV]])*(ROUNDDOWN($B36,10)>=ROUNDDOWN(TundideLoend[ALGUSKELLAAEG],10))*($B36<=TundideLoend[LÕPPKELLAAEG]),TundideLoend[KORDUMATU]),TundideLoend[KORDUMATU],0),2),0)","v":0},{"$f":"IFERROR(INDEX(TundideLoend[],MATCH(SUMPRODUCT((TundideLoend[PÄEV]=Tunniplaan[[#Headers],[NELJAPÄEV]])*(ROUNDDOWN($B36,10)>=ROUNDDOWN(TundideLoend[ALGUSKELLAAEG],10))*($B36<=TundideLoend[LÕPPKELLAAEG]),TundideLoend[KORDUMATU]),TundideLoend[KORDUMATU],0),2),0)","v":0},{"$f":"IFERROR(INDEX(TundideLoend[],MATCH(SUMPRODUCT((TundideLoend[PÄEV]=Tunniplaan[[#Headers],[REEDE]])*(ROUNDDOWN($B36,10)>=ROUNDDOWN(TundideLoend[ALGUSKELLAAEG],10))*($B36<=TundideLoend[LÕPPKELLAAEG]),TundideLoend[KORDUMATU]),TundideLoend[KORDUMATU],0),2),0)","v":0},{"$f":"IFERROR(INDEX(TundideLoend[],MATCH(SUMPRODUCT((TundideLoend[PÄEV]=Tunniplaan[[#Headers],[LAUPÄEV]])*(ROUNDDOWN($B36,10)>=ROUNDDOWN(TundideLoend[ALGUSKELLAAEG],10))*($B36<=TundideLoend[LÕPPKELLAAEG]),TundideLoend[KORDUMATU]),TundideLoend[KORDUMATU],0),2),0)","v":0}]
[null,{"$f":"B36+Samm","v":"16:15:00"},{"$f":"IFERROR(INDEX(TundideLoend[],MATCH(SUMPRODUCT((TundideLoend[PÄEV]=Tunniplaan[[#Headers],[PÜHAPÄEV]])*(ROUNDDOWN($B37,10)>=ROUNDDOWN(TundideLoend[ALGUSKELLAAEG],10))*($B37<=TundideLoend[LÕPPKELLAAEG]),TundideLoend[KORDUMATU]),TundideLoend[KORDUMATU],0),2),0)","v":0},{"$f":"IFERROR(INDEX(TundideLoend[],MATCH(SUMPRODUCT((TundideLoend[PÄEV]=Tunniplaan[[#Headers],[ESMASPÄEV]])*(ROUNDDOWN($B37,10)>=ROUNDDOWN(TundideLoend[ALGUSKELLAAEG],10))*($B37<=TundideLoend[LÕPPKELLAAEG]),TundideLoend[KORDUMATU]),TundideLoend[KORDUMATU],0),2),0)","v":"SP-111"},{"$f":"IFERROR(INDEX(TundideLoend[],MATCH(SUMPRODUCT((TundideLoend[PÄEV]=Tunniplaan[[#Headers],[TEISIPÄEV]])*(ROUNDDOWN($B37,10)>=ROUNDDOWN(TundideLoend[ALGUSKELLAAEG],10))*($B37<=TundideLoend[LÕPPKELLAAEG]),TundideLoend[KORDUMATU]),TundideLoend[KORDUMATU],0),2),0)","v":0},{"$f":"IFERROR(INDEX(TundideLoend[],MATCH(SUMPRODUCT((TundideLoend[PÄEV]=Tunniplaan[[#Headers],[KOLMAPÄEV]])*(ROUNDDOWN($B37,10)>=ROUNDDOWN(TundideLoend[ALGUSKELLAAEG],10))*($B37<=TundideLoend[LÕPPKELLAAEG]),TundideLoend[KORDUMATU]),TundideLoend[KORDUMATU],0),2),0)","v":0},{"$f":"IFERROR(INDEX(TundideLoend[],MATCH(SUMPRODUCT((TundideLoend[PÄEV]=Tunniplaan[[#Headers],[NELJAPÄEV]])*(ROUNDDOWN($B37,10)>=ROUNDDOWN(TundideLoend[ALGUSKELLAAEG],10))*($B37<=TundideLoend[LÕPPKELLAAEG]),TundideLoend[KORDUMATU]),TundideLoend[KORDUMATU],0),2),0)","v":0},{"$f":"IFERROR(INDEX(TundideLoend[],MATCH(SUMPRODUCT((TundideLoend[PÄEV]=Tunniplaan[[#Headers],[REEDE]])*(ROUNDDOWN($B37,10)>=ROUNDDOWN(TundideLoend[ALGUSKELLAAEG],10))*($B37<=TundideLoend[LÕPPKELLAAEG]),TundideLoend[KORDUMATU]),TundideLoend[KORDUMATU],0),2),0)","v":0},{"$f":"IFERROR(INDEX(TundideLoend[],MATCH(SUMPRODUCT((TundideLoend[PÄEV]=Tunniplaan[[#Headers],[LAUPÄEV]])*(ROUNDDOWN($B37,10)>=ROUNDDOWN(TundideLoend[ALGUSKELLAAEG],10))*($B37<=TundideLoend[LÕPPKELLAAEG]),TundideLoend[KORDUMATU]),TundideLoend[KORDUMATU],0),2),0)","v":0}]
[null,"16:30:00",{"$f":"IFERROR(INDEX(TundideLoend[],MATCH(SUMPRODUCT((TundideLoend[PÄEV]=Tunniplaan[[#Headers],[PÜHAPÄEV]])*(ROUNDDOWN($B38,10)>=ROUNDDOWN(TundideLoend[ALGUSKELLAAEG],10))*($B38<=TundideLoend[LÕPPKELLAAEG]),TundideLoend[KORDUMATU]),TundideLoend[KORDUMATU],0),2),0)","v":0},{"$f":"IFERROR(INDEX(TundideLoend[],MATCH(SUMPRODUCT((TundideLoend[PÄEV]=Tunniplaan[[#Headers],[ESMASPÄEV]])*(ROUNDDOWN($B38,10)>=ROUNDDOWN(TundideLoend[ALGUSKELLAAEG],10))*($B38<=TundideLoend[LÕPPKELLAAEG]),TundideLoend[KORDUMATU]),TundideLoend[KORDUMATU],0),2),0)","v":"SP-111"},{"$f":"IFERROR(INDEX(TundideLoend[],MATCH(SUMPRODUCT((TundideLoend[PÄEV]=Tunniplaan[[#Headers],[TEISIPÄEV]])*(ROUNDDOWN($B38,10)>=ROUNDDOWN(TundideLoend[ALGUSKELLAAEG],10))*($B38<=TundideLoend[LÕPPKELLAAEG]),TundideLoend[KORDUMATU]),TundideLoend[KORDUMATU],0),2),0)","v":0},{"$f":"IFERROR(INDEX(TundideLoend[],MATCH(SUMPRODUCT((TundideLoend[PÄEV]=Tunniplaan[[#Headers],[KOLMAPÄEV]])*(ROUNDDOWN($B38,10)>=ROUNDDOWN(TundideLoend[ALGUSKELLAAEG],10))*($B38<=TundideLoend[LÕPPKELLAAEG]),TundideLoend[KORDUMATU]),TundideLoend[KORDUMATU],0),2),0)","v":0},{"$f":"IFERROR(INDEX(TundideLoend[],MATCH(SUMPRODUCT((TundideLoend[PÄEV]=Tunniplaan[[#Headers],[NELJAPÄEV]])*(ROUNDDOWN($B38,10)>=ROUNDDOWN(TundideLoend[ALGUSKELLAAEG],10))*($B38<=TundideLoend[LÕPPKELLAAEG]),TundideLoend[KORDUMATU]),TundideLoend[KORDUMATU],0),2),0)","v":0},{"$f":"IFERROR(INDEX(TundideLoend[],MATCH(SUMPRODUCT((TundideLoend[PÄEV]=Tunniplaan[[#Headers],[REEDE]])*(ROUNDDOWN($B38,10)>=ROUNDDOWN(TundideLoend[ALGUSKELLAAEG],10))*($B38<=TundideLoend[LÕPPKELLAAEG]),TundideLoend[KORDUMATU]),TundideLoend[KORDUMATU],0),2),0)","v":0},{"$f":"IFERROR(INDEX(TundideLoend[],MATCH(SUMPRODUCT((TundideLoend[PÄEV]=Tunniplaan[[#Headers],[LAUPÄEV]])*(ROUNDDOWN($B38,10)>=ROUNDDOWN(TundideLoend[ALGUSKELLAAEG],10))*($B38<=TundideLoend[LÕPPKELLAAEG]),TundideLoend[KORDUMATU]),TundideLoend[KORDUMATU],0),2),0)","v":0}]
[null,"16:45:00",{"$f":"IFERROR(INDEX(TundideLoend[],MATCH(SUMPRODUCT((TundideLoend[PÄEV]=Tunniplaan[[#Headers],[PÜHAPÄEV]])*(ROUNDDOWN($B39,10)>=ROUNDDOWN(TundideLoend[ALGUSKELLAAEG],10))*($B39<=TundideLoend[LÕPPKELLAAEG]),TundideLoend[KORDUMATU]),TundideLoend[KORDUMATU],0),2),0)","v":0},{"$f":"IFERROR(INDEX(TundideLoend[],MATCH(SUMPRODUCT((TundideLoend[PÄEV]=Tunniplaan[[#Headers],[ESMASPÄEV]])*(ROUNDDOWN($B39,10)>=ROUNDDOWN(TundideLoend[ALGUSKELLAAEG],10))*($B39<=TundideLoend[LÕPPKELLAAEG]),TundideLoend[KORDUMATU]),TundideLoend[KORDUMATU],0),2),0)","v":"SP-111"},{"$f":"IFERROR(INDEX(TundideLoend[],MATCH(SUMPRODUCT((TundideLoend[PÄEV]=Tunniplaan[[#Headers],[TEISIPÄEV]])*(ROUNDDOWN($B39,10)>=ROUNDDOWN(TundideLoend[ALGUSKELLAAEG],10))*($B39<=TundideLoend[LÕPPKELLAAEG]),TundideLoend[KORDUMATU]),TundideLoend[KORDUMATU],0),2),0)","v":0},{"$f":"IFERROR(INDEX(TundideLoend[],MATCH(SUMPRODUCT((TundideLoend[PÄEV]=Tunniplaan[[#Headers],[KOLMAPÄEV]])*(ROUNDDOWN($B39,10)>=ROUNDDOWN(TundideLoend[ALGUSKELLAAEG],10))*($B39<=TundideLoend[LÕPPKELLAAEG]),TundideLoend[KORDUMATU]),TundideLoend[KORDUMATU],0),2),0)","v":0},{"$f":"IFERROR(INDEX(TundideLoend[],MATCH(SUMPRODUCT((TundideLoend[PÄEV]=Tunniplaan[[#Headers],[NELJAPÄEV]])*(ROUNDDOWN($B39,10)>=ROUNDDOWN(TundideLoend[ALGUSKELLAAEG],10))*($B39<=TundideLoend[LÕPPKELLAAEG]),TundideLoend[KORDUMATU]),TundideLoend[KORDUMATU],0),2),0)","v":0},{"$f":"IFERROR(INDEX(TundideLoend[],MATCH(SUMPRODUCT((TundideLoend[PÄEV]=Tunniplaan[[#Headers],[REEDE]])*(ROUNDDOWN($B39,10)>=ROUNDDOWN(TundideLoend[ALGUSKELLAAEG],10))*($B39<=TundideLoend[LÕPPKELLAAEG]),TundideLoend[KORDUMATU]),TundideLoend[KORDUMATU],0),2),0)","v":0},{"$f":"IFERROR(INDEX(TundideLoend[],MATCH(SUMPRODUCT((TundideLoend[PÄEV]=Tunniplaan[[#Headers],[LAUPÄEV]])*(ROUNDDOWN($B39,10)>=ROUNDDOWN(TundideLoend[ALGUSKELLAAEG],10))*($B39<=TundideLoend[LÕPPKELLAAEG]),TundideLoend[KORDUMATU]),TundideLoend[KORDUMATU],0),2),0)","v":0}]
[null,"17:00:00",{"$f":"IFERROR(INDEX(TundideLoend[],MATCH(SUMPRODUCT((TundideLoend[PÄEV]=Tunniplaan[[#Headers],[PÜHAPÄEV]])*(ROUNDDOWN($B40,10)>=ROUNDDOWN(TundideLoend[ALGUSKELLAAEG],10))*($B40<=TundideLoend[LÕPPKELLAAEG]),TundideLoend[KORDUMATU]),TundideLoend[KORDUMATU],0),2),0)","v":0},{"$f":"IFERROR(INDEX(TundideLoend[],MATCH(SUMPRODUCT((TundideLoend[PÄEV]=Tunniplaan[[#Headers],[ESMASPÄEV]])*(ROUNDDOWN($B40,10)>=ROUNDDOWN(TundideLoend[ALGUSKELLAAEG],10))*($B40<=TundideLoend[LÕPPKELLAAEG]),TundideLoend[KORDUMATU]),TundideLoend[KORDUMATU],0),2),0)","v":"SP-111"},{"$f":"IFERROR(INDEX(TundideLoend[],MATCH(SUMPRODUCT((TundideLoend[PÄEV]=Tunniplaan[[#Headers],[TEISIPÄEV]])*(ROUNDDOWN($B40,10)>=ROUNDDOWN(TundideLoend[ALGUSKELLAAEG],10))*($B40<=TundideLoend[LÕPPKELLAAEG]),TundideLoend[KORDUMATU]),TundideLoend[KORDUMATU],0),2),0)","v":0},{"$f":"IFERROR(INDEX(TundideLoend[],MATCH(SUMPRODUCT((TundideLoend[PÄEV]=Tunniplaan[[#Headers],[KOLMAPÄEV]])*(ROUNDDOWN($B40,10)>=ROUNDDOWN(TundideLoend[ALGUSKELLAAEG],10))*($B40<=TundideLoend[LÕPPKELLAAEG]),TundideLoend[KORDUMATU]),TundideLoend[KORDUMATU],0),2),0)","v":0},{"$f":"IFERROR(INDEX(TundideLoend[],MATCH(SUMPRODUCT((TundideLoend[PÄEV]=Tunniplaan[[#Headers],[NELJAPÄEV]])*(ROUNDDOWN($B40,10)>=ROUNDDOWN(TundideLoend[ALGUSKELLAAEG],10))*($B40<=TundideLoend[LÕPPKELLAAEG]),TundideLoend[KORDUMATU]),TundideLoend[KORDUMATU],0),2),0)","v":0},{"$f":"IFERROR(INDEX(TundideLoend[],MATCH(SUMPRODUCT((TundideLoend[PÄEV]=Tunniplaan[[#Headers],[REEDE]])*(ROUNDDOWN($B40,10)>=ROUNDDOWN(TundideLoend[ALGUSKELLAAEG],10))*($B40<=TundideLoend[LÕPPKELLAAEG]),TundideLoend[KORDUMATU]),TundideLoend[KORDUMATU],0),2),0)","v":0},{"$f":"IFERROR(INDEX(TundideLoend[],MATCH(SUMPRODUCT((TundideLoend[PÄEV]=Tunniplaan[[#Headers],[LAUPÄEV]])*(ROUNDDOWN($B40,10)>=ROUNDDOWN(TundideLoend[ALGUSKELLAAEG],10))*($B40<=TundideLoend[LÕPPKELLAAEG]),TundideLoend[KORDUMATU]),TundideLoend[KORDUMATU],0),2),0)","v":0}]
[null,"17:15:00",{"$f":"IFERROR(INDEX(TundideLoend[],MATCH(SUMPRODUCT((TundideLoend[PÄEV]=Tunniplaan[[#Headers],[PÜHAPÄEV]])*(ROUNDDOWN($B41,10)>=ROUNDDOWN(TundideLoend[ALGUSKELLAAEG],10))*($B41<=TundideLoend[LÕPPKELLAAEG]),TundideLoend[KORDUMATU]),TundideLoend[KORDUMATU],0),2),0)","v":0},{"$f":"IFERROR(INDEX(TundideLoend[],MATCH(SUMPRODUCT((TundideLoend[PÄEV]=Tunniplaan[[#Headers],[ESMASPÄEV]])*(ROUNDDOWN($B41,10)>=ROUNDDOWN(TundideLoend[ALGUSKELLAAEG],10))*($B41<=TundideLoend[LÕPPKELLAAEG]),TundideLoend[KORDUMATU]),TundideLoend[KORDUMATU],0),2),0)","v":0},{"$f":"IFERROR(INDEX(TundideLoend[],MATCH(SUMPRODUCT((TundideLoend[PÄEV]=Tunniplaan[[#Headers],[TEISIPÄEV]])*(ROUNDDOWN($B41,10)>=ROUNDDOWN(TundideLoend[ALGUSKELLAAEG],10))*($B41<=TundideLoend[LÕPPKELLAAEG]),TundideLoend[KORDUMATU]),TundideLoend[KORDUMATU],0),2),0)","v":0},{"$f":"IFERROR(INDEX(TundideLoend[],MATCH(SUMPRODUCT((TundideLoend[PÄEV]=Tunniplaan[[#Headers],[KOLMAPÄEV]])*(ROUNDDOWN($B41,10)>=ROUNDDOWN(TundideLoend[ALGUSKELLAAEG],10))*($B41<=TundideLoend[LÕPPKELLAAEG]),TundideLoend[KORDUMATU]),TundideLoend[KORDUMATU],0),2),0)","v":0},{"$f":"IFERROR(INDEX(TundideLoend[],MATCH(SUMPRODUCT((TundideLoend[PÄEV]=Tunniplaan[[#Headers],[NELJAPÄEV]])*(ROUNDDOWN($B41,10)>=ROUNDDOWN(TundideLoend[ALGUSKELLAAEG],10))*($B41<=TundideLoend[LÕPPKELLAAEG]),TundideLoend[KORDUMATU]),TundideLoend[KORDUMATU],0),2),0)","v":0},{"$f":"IFERROR(INDEX(TundideLoend[],MATCH(SUMPRODUCT((TundideLoend[PÄEV]=Tunniplaan[[#Headers],[REEDE]])*(ROUNDDOWN($B41,10)>=ROUNDDOWN(TundideLoend[ALGUSKELLAAEG],10))*($B41<=TundideLoend[LÕPPKELLAAEG]),TundideLoend[KORDUMATU]),TundideLoend[KORDUMATU],0),2),0)","v":0},{"$f":"IFERROR(INDEX(TundideLoend[],MATCH(SUMPRODUCT((TundideLoend[PÄEV]=Tunniplaan[[#Headers],[LAUPÄEV]])*(ROUNDDOWN($B41,10)>=ROUNDDOWN(TundideLoend[ALGUSKELLAAEG],10))*($B41<=TundideLoend[LÕPPKELLAAEG]),TundideLoend[KORDUMATU]),TundideLoend[KORDUMATU],0),2),0)","v":0}]
[null,"17:30:00",{"$f":"IFERROR(INDEX(TundideLoend[],MATCH(SUMPRODUCT((TundideLoend[PÄEV]=Tunniplaan[[#Headers],[PÜHAPÄEV]])*(ROUNDDOWN($B42,10)>=ROUNDDOWN(TundideLoend[ALGUSKELLAAEG],10))*($B42<=TundideLoend[LÕPPKELLAAEG]),TundideLoend[KORDUMATU]),TundideLoend[KORDUMATU],0),2),0)","v":0},{"$f":"IFERROR(INDEX(TundideLoend[],MATCH(SUMPRODUCT((TundideLoend[PÄEV]=Tunniplaan[[#Headers],[ESMASPÄEV]])*(ROUNDDOWN($B42,10)>=ROUNDDOWN(TundideLoend[ALGUSKELLAAEG],10))*($B42<=TundideLoend[LÕPPKELLAAEG]),TundideLoend[KORDUMATU]),TundideLoend[KORDUMATU],0),2),0)","v":0},{"$f":"IFERROR(INDEX(TundideLoend[],MATCH(SUMPRODUCT((TundideLoend[PÄEV]=Tunniplaan[[#Headers],[TEISIPÄEV]])*(ROUNDDOWN($B42,10)>=ROUNDDOWN(TundideLoend[ALGUSKELLAAEG],10))*($B42<=TundideLoend[LÕPPKELLAAEG]),TundideLoend[KORDUMATU]),TundideLoend[KORDUMATU],0),2),0)","v":0},{"$f":"IFERROR(INDEX(TundideLoend[],MATCH(SUMPRODUCT((TundideLoend[PÄEV]=Tunniplaan[[#Headers],[KOLMAPÄEV]])*(ROUNDDOWN($B42,10)>=ROUNDDOWN(TundideLoend[ALGUSKELLAAEG],10))*($B42<=TundideLoend[LÕPPKELLAAEG]),TundideLoend[KORDUMATU]),TundideLoend[KORDUMATU],0),2),0)","v":0},{"$f":"IFERROR(INDEX(TundideLoend[],MATCH(SUMPRODUCT((TundideLoend[PÄEV]=Tunniplaan[[#Headers],[NELJAPÄEV]])*(ROUNDDOWN($B42,10)>=ROUNDDOWN(TundideLoend[ALGUSKELLAAEG],10))*($B42<=TundideLoend[LÕPPKELLAAEG]),TundideLoend[KORDUMATU]),TundideLoend[KORDUMATU],0),2),0)","v":0},{"$f":"IFERROR(INDEX(TundideLoend[],MATCH(SUMPRODUCT((TundideLoend[PÄEV]=Tunniplaan[[#Headers],[REEDE]])*(ROUNDDOWN($B42,10)>=ROUNDDOWN(TundideLoend[ALGUSKELLAAEG],10))*($B42<=TundideLoend[LÕPPKELLAAEG]),TundideLoend[KORDUMATU]),TundideLoend[KORDUMATU],0),2),0)","v":0},{"$f":"IFERROR(INDEX(TundideLoend[],MATCH(SUMPRODUCT((TundideLoend[PÄEV]=Tunniplaan[[#Headers],[LAUPÄEV]])*(ROUNDDOWN($B42,10)>=ROUNDDOWN(TundideLoend[ALGUSKELLAAEG],10))*($B42<=TundideLoend[LÕPPKELLAAEG]),TundideLoend[KORDUMATU]),TundideLoend[KORDUMATU],0),2),0)","v":0}]
[null,"17:45:00",{"$f":"IFERROR(INDEX(TundideLoend[],MATCH(SUMPRODUCT((TundideLoend[PÄEV]=Tunniplaan[[#Headers],[PÜHAPÄEV]])*(ROUNDDOWN($B43,10)>=ROUNDDOWN(TundideLoend[ALGUSKELLAAEG],10))*($B43<=TundideLoend[LÕPPKELLAAEG]),TundideLoend[KORDUMATU]),TundideLoend[KORDUMATU],0),2),0)","v":0},{"$f":"IFERROR(INDEX(TundideLoend[],MATCH(SUMPRODUCT((TundideLoend[PÄEV]=Tunniplaan[[#Headers],[ESMASPÄEV]])*(ROUNDDOWN($B43,10)>=ROUNDDOWN(TundideLoend[ALGUSKELLAAEG],10))*($B43<=TundideLoend[LÕPPKELLAAEG]),TundideLoend[KORDUMATU]),TundideLoend[KORDUMATU],0),2),0)","v":0},{"$f":"IFERROR(INDEX(TundideLoend[],MATCH(SUMPRODUCT((TundideLoend[PÄEV]=Tunniplaan[[#Headers],[TEISIPÄEV]])*(ROUNDDOWN($B43,10)>=ROUNDDOWN(TundideLoend[ALGUSKELLAAEG],10))*($B43<=TundideLoend[LÕPPKELLAAEG]),TundideLoend[KORDUMATU]),TundideLoend[KORDUMATU],0),2),0)","v":0},{"$f":"IFERROR(INDEX(TundideLoend[],MATCH(SUMPRODUCT((TundideLoend[PÄEV]=Tunniplaan[[#Headers],[KOLMAPÄEV]])*(ROUNDDOWN($B43,10)>=ROUNDDOWN(TundideLoend[ALGUSKELLAAEG],10))*($B43<=TundideLoend[LÕPPKELLAAEG]),TundideLoend[KORDUMATU]),TundideLoend[KORDUMATU],0),2),0)","v":0},{"$f":"IFERROR(INDEX(TundideLoend[],MATCH(SUMPRODUCT((TundideLoend[PÄEV]=Tunniplaan[[#Headers],[NELJAPÄEV]])*(ROUNDDOWN($B43,10)>=ROUNDDOWN(TundideLoend[ALGUSKELLAAEG],10))*($B43<=TundideLoend[LÕPPKELLAAEG]),TundideLoend[KORDUMATU]),TundideLoend[KORDUMATU],0),2),0)","v":0},{"$f":"IFERROR(INDEX(TundideLoend[],MATCH(SUMPRODUCT((TundideLoend[PÄEV]=Tunniplaan[[#Headers],[REEDE]])*(ROUNDDOWN($B43,10)>=ROUNDDOWN(TundideLoend[ALGUSKELLAAEG],10))*($B43<=TundideLoend[LÕPPKELLAAEG]),TundideLoend[KORDUMATU]),TundideLoend[KORDUMATU],0),2),0)","v":0},{"$f":"IFERROR(INDEX(TundideLoend[],MATCH(SUMPRODUCT((TundideLoend[PÄEV]=Tunniplaan[[#Headers],[LAUPÄEV]])*(ROUNDDOWN($B43,10)>=ROUNDDOWN(TundideLoend[ALGUSKELLAAEG],10))*($B43<=TundideLoend[LÕPPKELLAAEG]),TundideLoend[KORDUMATU]),TundideLoend[KORDUMATU],0),2),0)","v":0}]
[null,"18:00:00",{"$f":"IFERROR(INDEX(TundideLoend[],MATCH(SUMPRODUCT((TundideLoend[PÄEV]=Tunniplaan[[#Headers],[PÜHAPÄEV]])*(ROUNDDOWN($B44,10)>=ROUNDDOWN(TundideLoend[ALGUSKELLAAEG],10))*($B44<=TundideLoend[LÕPPKELLAAEG]),TundideLoend[KORDUMATU]),TundideLoend[KORDUMATU],0),2),0)","v":0},{"$f":"IFERROR(INDEX(TundideLoend[],MATCH(SUMPRODUCT((TundideLoend[PÄEV]=Tunniplaan[[#Headers],[ESMASPÄEV]])*(ROUNDDOWN($B44,10)>=ROUNDDOWN(TundideLoend[ALGUSKELLAAEG],10))*($B44<=TundideLoend[LÕPPKELLAAEG]),TundideLoend[KORDUMATU]),TundideLoend[KORDUMATU],0),2),0)","v":0},{"$f":"IFERROR(INDEX(TundideLoend[],MATCH(SUMPRODUCT((TundideLoend[PÄEV]=Tunniplaan[[#Headers],[TEISIPÄEV]])*(ROUNDDOWN($B44,10)>=ROUNDDOWN(TundideLoend[ALGUSKELLAAEG],10))*($B44<=TundideLoend[LÕPPKELLAAEG]),TundideLoend[KORDUMATU]),TundideLoend[KORDUMATU],0),2),0)","v":0},{"$f":"IFERROR(INDEX(TundideLoend[],MATCH(SUMPRODUCT((TundideLoend[PÄEV]=Tunniplaan[[#Headers],[KOLMAPÄEV]])*(ROUNDDOWN($B44,10)>=ROUNDDOWN(TundideLoend[ALGUSKELLAAEG],10))*($B44<=TundideLoend[LÕPPKELLAAEG]),TundideLoend[KORDUMATU]),TundideLoend[KORDUMATU],0),2),0)","v":0},{"$f":"IFERROR(INDEX(TundideLoend[],MATCH(SUMPRODUCT((TundideLoend[PÄEV]=Tunniplaan[[#Headers],[NELJAPÄEV]])*(ROUNDDOWN($B44,10)>=ROUNDDOWN(TundideLoend[ALGUSKELLAAEG],10))*($B44<=TundideLoend[LÕPPKELLAAEG]),TundideLoend[KORDUMATU]),TundideLoend[KORDUMATU],0),2),0)","v":0},{"$f":"IFERROR(INDEX(TundideLoend[],MATCH(SUMPRODUCT((TundideLoend[PÄEV]=Tunniplaan[[#Headers],[REEDE]])*(ROUNDDOWN($B44,10)>=ROUNDDOWN(TundideLoend[ALGUSKELLAAEG],10))*($B44<=TundideLoend[LÕPPKELLAAEG]),TundideLoend[KORDUMATU]),TundideLoend[KORDUMATU],0),2),0)","v":0},{"$f":"IFERROR(INDEX(TundideLoend[],MATCH(SUMPRODUCT((TundideLoend[PÄEV]=Tunniplaan[[#Headers],[LAUPÄEV]])*(ROUNDDOWN($B44,10)>=ROUNDDOWN(TundideLoend[ALGUSKELLAAEG],10))*($B44<=TundideLoend[LÕPPKELLAAEG]),TundideLoend[KORDUMATU]),TundideLoend[KORDUMATU],0),2),0)","v":0}]
[null,"18:15:00",{"$f":"IFERROR(INDEX(TundideLoend[],MATCH(SUMPRODUCT((TundideLoend[PÄEV]=Tunniplaan[[#Headers],[PÜHAPÄEV]])*(ROUNDDOWN($B45,10)>=ROUNDDOWN(TundideLoend[ALGUSKELLAAEG],10))*($B45<=TundideLoend[LÕPPKELLAAEG]),TundideLoend[KORDUMATU]),TundideLoend[KORDUMATU],0),2),0)","v":0},{"$f":"IFERROR(INDEX(TundideLoend[],MATCH(SUMPRODUCT((TundideLoend[PÄEV]=Tunniplaan[[#Headers],[ESMASPÄEV]])*(ROUNDDOWN($B45,10)>=ROUNDDOWN(TundideLoend[ALGUSKELLAAEG],10))*($B45<=TundideLoend[LÕPPKELLAAEG]),TundideLoend[KORDUMATU]),TundideLoend[KORDUMATU],0),2),0)","v":0},{"$f":"IFERROR(INDEX(TundideLoend[],MATCH(SUMPRODUCT((TundideLoend[PÄEV]=Tunniplaan[[#Headers],[TEISIPÄEV]])*(ROUNDDOWN($B45,10)>=ROUNDDOWN(TundideLoend[ALGUSKELLAAEG],10))*($B45<=TundideLoend[LÕPPKELLAAEG]),TundideLoend[KORDUMATU]),TundideLoend[KORDUMATU],0),2),0)","v":0},{"$f":"IFERROR(INDEX(TundideLoend[],MATCH(SUMPRODUCT((TundideLoend[PÄEV]=Tunniplaan[[#Headers],[KOLMAPÄEV]])*(ROUNDDOWN($B45,10)>=ROUNDDOWN(TundideLoend[ALGUSKELLAAEG],10))*($B45<=TundideLoend[LÕPPKELLAAEG]),TundideLoend[KORDUMATU]),TundideLoend[KORDUMATU],0),2),0)","v":0},{"$f":"IFERROR(INDEX(TundideLoend[],MATCH(SUMPRODUCT((TundideLoend[PÄEV]=Tunniplaan[[#Headers],[NELJAPÄEV]])*(ROUNDDOWN($B45,10)>=ROUNDDOWN(TundideLoend[ALGUSKELLAAEG],10))*($B45<=TundideLoend[LÕPPKELLAAEG]),TundideLoend[KORDUMATU]),TundideLoend[KORDUMATU],0),2),0)","v":0},{"$f":"IFERROR(INDEX(TundideLoend[],MATCH(SUMPRODUCT((TundideLoend[PÄEV]=Tunniplaan[[#Headers],[REEDE]])*(ROUNDDOWN($B45,10)>=ROUNDDOWN(TundideLoend[ALGUSKELLAAEG],10))*($B45<=TundideLoend[LÕPPKELLAAEG]),TundideLoend[KORDUMATU]),TundideLoend[KORDUMATU],0),2),0)","v":0},{"$f":"IFERROR(INDEX(TundideLoend[],MATCH(SUMPRODUCT((TundideLoend[PÄEV]=Tunniplaan[[#Headers],[LAUPÄEV]])*(ROUNDDOWN($B45,10)>=ROUNDDOWN(TundideLoend[ALGUSKELLAAEG],10))*($B45<=TundideLoend[LÕPPKELLAAEG]),TundideLoend[KORDUMATU]),TundideLoend[KORDUMATU],0),2),0)","v":0}]
[null,"18:30:00",{"$f":"IFERROR(INDEX(TundideLoend[],MATCH(SUMPRODUCT((TundideLoend[PÄEV]=Tunniplaan[[#Headers],[PÜHAPÄEV]])*(ROUNDDOWN($B46,10)>=ROUNDDOWN(TundideLoend[ALGUSKELLAAEG],10))*($B46<=TundideLoend[LÕPPKELLAAEG]),TundideLoend[KORDUMATU]),TundideLoend[KORDUMATU],0),2),0)","v":0},{"$f":"IFERROR(INDEX(TundideLoend[],MATCH(SUMPRODUCT((TundideLoend[PÄEV]=Tunniplaan[[#Headers],[ESMASPÄEV]])*(ROUNDDOWN($B46,10)>=ROUNDDOWN(TundideLoend[ALGUSKELLAAEG],10))*($B46<=TundideLoend[LÕPPKELLAAEG]),TundideLoend[KORDUMATU]),TundideLoend[KORDUMATU],0),2),0)","v":0},{"$f":"IFERROR(INDEX(TundideLoend[],MATCH(SUMPRODUCT((TundideLoend[PÄEV]=Tunniplaan[[#Headers],[TEISIPÄEV]])*(ROUNDDOWN($B46,10)>=ROUNDDOWN(TundideLoend[ALGUSKELLAAEG],10))*($B46<=TundideLoend[LÕPPKELLAAEG]),TundideLoend[KORDUMATU]),TundideLoend[KORDUMATU],0),2),0)","v":0},{"$f":"IFERROR(INDEX(TundideLoend[],MATCH(SUMPRODUCT((TundideLoend[PÄEV]=Tunniplaan[[#Headers],[KOLMAPÄEV]])*(ROUNDDOWN($B46,10)>=ROUNDDOWN(TundideLoend[ALGUSKELLAAEG],10))*($B46<=TundideLoend[LÕPPKELLAAEG]),TundideLoend[KORDUMATU]),TundideLoend[KORDUMATU],0),2),0)","v":0},{"$f":"IFERROR(INDEX(TundideLoend[],MATCH(SUMPRODUCT((TundideLoend[PÄEV]=Tunniplaan[[#Headers],[NELJAPÄEV]])*(ROUNDDOWN($B46,10)>=ROUNDDOWN(TundideLoend[ALGUSKELLAAEG],10))*($B46<=TundideLoend[LÕPPKELLAAEG]),TundideLoend[KORDUMATU]),TundideLoend[KORDUMATU],0),2),0)","v":0},{"$f":"IFERROR(INDEX(TundideLoend[],MATCH(SUMPRODUCT((TundideLoend[PÄEV]=Tunniplaan[[#Headers],[REEDE]])*(ROUNDDOWN($B46,10)>=ROUNDDOWN(TundideLoend[ALGUSKELLAAEG],10))*($B46<=TundideLoend[LÕPPKELLAAEG]),TundideLoend[KORDUMATU]),TundideLoend[KORDUMATU],0),2),0)","v":0},{"$f":"IFERROR(INDEX(TundideLoend[],MATCH(SUMPRODUCT((TundideLoend[PÄEV]=Tunniplaan[[#Headers],[LAUPÄEV]])*(ROUNDDOWN($B46,10)>=ROUNDDOWN(TundideLoend[ALGUSKELLAAEG],10))*($B46<=TundideLoend[LÕPPKELLAAEG]),TundideLoend[KORDUMATU]),TundideLoend[KORDUMATU],0),2),0)","v":0}]
[null,"18:45:00",{"$f":"IFERROR(INDEX(TundideLoend[],MATCH(SUMPRODUCT((TundideLoend[PÄEV]=Tunniplaan[[#Headers],[PÜHAPÄEV]])*(ROUNDDOWN($B47,10)>=ROUNDDOWN(TundideLoend[ALGUSKELLAAEG],10))*($B47<=TundideLoend[LÕPPKELLAAEG]),TundideLoend[KORDUMATU]),TundideLoend[KORDUMATU],0),2),0)","v":0},{"$f":"IFERROR(INDEX(TundideLoend[],MATCH(SUMPRODUCT((TundideLoend[PÄEV]=Tunniplaan[[#Headers],[ESMASPÄEV]])*(ROUNDDOWN($B47,10)>=ROUNDDOWN(TundideLoend[ALGUSKELLAAEG],10))*($B47<=TundideLoend[LÕPPKELLAAEG]),TundideLoend[KORDUMATU]),TundideLoend[KORDUMATU],0),2),0)","v":0},{"$f":"IFERROR(INDEX(TundideLoend[],MATCH(SUMPRODUCT((TundideLoend[PÄEV]=Tunniplaan[[#Headers],[TEISIPÄEV]])*(ROUNDDOWN($B47,10)>=ROUNDDOWN(TundideLoend[ALGUSKELLAAEG],10))*($B47<=TundideLoend[LÕPPKELLAAEG]),TundideLoend[KORDUMATU]),TundideLoend[KORDUMATU],0),2),0)","v":0},{"$f":"IFERROR(INDEX(TundideLoend[],MATCH(SUMPRODUCT((TundideLoend[PÄEV]=Tunniplaan[[#Headers],[KOLMAPÄEV]])*(ROUNDDOWN($B47,10)>=ROUNDDOWN(TundideLoend[ALGUSKELLAAEG],10))*($B47<=TundideLoend[LÕPPKELLAAEG]),TundideLoend[KORDUMATU]),TundideLoend[KORDUMATU],0),2),0)","v":0},{"$f":"IFERROR(INDEX(TundideLoend[],MATCH(SUMPRODUCT((TundideLoend[PÄEV]=Tunniplaan[[#Headers],[NELJAPÄEV]])*(ROUNDDOWN($B47,10)>=ROUNDDOWN(TundideLoend[ALGUSKELLAAEG],10))*($B47<=TundideLoend[LÕPPKELLAAEG]),TundideLoend[KORDUMATU]),TundideLoend[KORDUMATU],0),2),0)","v":0},{"$f":"IFERROR(INDEX(TundideLoend[],MATCH(SUMPRODUCT((TundideLoend[PÄEV]=Tunniplaan[[#Headers],[REEDE]])*(ROUNDDOWN($B47,10)>=ROUNDDOWN(TundideLoend[ALGUSKELLAAEG],10))*($B47<=TundideLoend[LÕPPKELLAAEG]),TundideLoend[KORDUMATU]),TundideLoend[KORDUMATU],0),2),0)","v":0},{"$f":"IFERROR(INDEX(TundideLoend[],MATCH(SUMPRODUCT((TundideLoend[PÄEV]=Tunniplaan[[#Headers],[LAUPÄEV]])*(ROUNDDOWN($B47,10)>=ROUNDDOWN(TundideLoend[ALGUSKELLAAEG],10))*($B47<=TundideLoend[LÕPPKELLAAEG]),TundideLoend[KORDUMATU]),TundideLoend[KORDUMATU],0),2),0)","v":0}]
[null,"19:00:00",{"$f":"IFERROR(INDEX(TundideLoend[],MATCH(SUMPRODUCT((TundideLoend[PÄEV]=Tunniplaan[[#Headers],[PÜHAPÄEV]])*(ROUNDDOWN($B48,10)>=ROUNDDOWN(TundideLoend[ALGUSKELLAAEG],10))*($B48<=TundideLoend[LÕPPKELLAAEG]),TundideLoend[KORDUMATU]),TundideLoend[KORDUMATU],0),2),0)","v":0},{"$f":"IFERROR(INDEX(TundideLoend[],MATCH(SUMPRODUCT((TundideLoend[PÄEV]=Tunniplaan[[#Headers],[ESMASPÄEV]])*(ROUNDDOWN($B48,10)>=ROUNDDOWN(TundideLoend[ALGUSKELLAAEG],10))*($B48<=TundideLoend[LÕPPKELLAAEG]),TundideLoend[KORDUMATU]),TundideLoend[KORDUMATU],0),2),0)","v":0},{"$f":"IFERROR(INDEX(TundideLoend[],MATCH(SUMPRODUCT((TundideLoend[PÄEV]=Tunniplaan[[#Headers],[TEISIPÄEV]])*(ROUNDDOWN($B48,10)>=ROUNDDOWN(TundideLoend[ALGUSKELLAAEG],10))*($B48<=TundideLoend[LÕPPKELLAAEG]),TundideLoend[KORDUMATU]),TundideLoend[KORDUMATU],0),2),0)","v":0},{"$f":"IFERROR(INDEX(TundideLoend[],MATCH(SUMPRODUCT((TundideLoend[PÄEV]=Tunniplaan[[#Headers],[KOLMAPÄEV]])*(ROUNDDOWN($B48,10)>=ROUNDDOWN(TundideLoend[ALGUSKELLAAEG],10))*($B48<=TundideLoend[LÕPPKELLAAEG]),TundideLoend[KORDUMATU]),TundideLoend[KORDUMATU],0),2),0)","v":0},{"$f":"IFERROR(INDEX(TundideLoend[],MATCH(SUMPRODUCT((TundideLoend[PÄEV]=Tunniplaan[[#Headers],[NELJAPÄEV]])*(ROUNDDOWN($B48,10)>=ROUNDDOWN(TundideLoend[ALGUSKELLAAEG],10))*($B48<=TundideLoend[LÕPPKELLAAEG]),TundideLoend[KORDUMATU]),TundideLoend[KORDUMATU],0),2),0)","v":0},{"$f":"IFERROR(INDEX(TundideLoend[],MATCH(SUMPRODUCT((TundideLoend[PÄEV]=Tunniplaan[[#Headers],[REEDE]])*(ROUNDDOWN($B48,10)>=ROUNDDOWN(TundideLoend[ALGUSKELLAAEG],10))*($B48<=TundideLoend[LÕPPKELLAAEG]),TundideLoend[KORDUMATU]),TundideLoend[KORDUMATU],0),2),0)","v":0},{"$f":"IFERROR(INDEX(TundideLoend[],MATCH(SUMPRODUCT((TundideLoend[PÄEV]=Tunniplaan[[#Headers],[LAUPÄEV]])*(ROUNDDOWN($B48,10)>=ROUNDDOWN(TundideLoend[ALGUSKELLAAEG],10))*($B48<=TundideLoend[LÕPPKELLAAEG]),TundideLoend[KORDUMATU]),TundideLoend[KORDUMATU],0),2),0)","v":0}]
[null,"19:15:00",{"$f":"IFERROR(INDEX(TundideLoend[],MATCH(SUMPRODUCT((TundideLoend[PÄEV]=Tunniplaan[[#Headers],[PÜHAPÄEV]])*(ROUNDDOWN($B49,10)>=ROUNDDOWN(TundideLoend[ALGUSKELLAAEG],10))*($B49<=TundideLoend[LÕPPKELLAAEG]),TundideLoend[KORDUMATU]),TundideLoend[KORDUMATU],0),2),0)","v":0},{"$f":"IFERROR(INDEX(TundideLoend[],MATCH(SUMPRODUCT((TundideLoend[PÄEV]=Tunniplaan[[#Headers],[ESMASPÄEV]])*(ROUNDDOWN($B49,10)>=ROUNDDOWN(TundideLoend[ALGUSKELLAAEG],10))*($B49<=TundideLoend[LÕPPKELLAAEG]),TundideLoend[KORDUMATU]),TundideLoend[KORDUMATU],0),2),0)","v":0},{"$f":"IFERROR(INDEX(TundideLoend[],MATCH(SUMPRODUCT((TundideLoend[PÄEV]=Tunniplaan[[#Headers],[TEISIPÄEV]])*(ROUNDDOWN($B49,10)>=ROUNDDOWN(TundideLoend[ALGUSKELLAAEG],10))*($B49<=TundideLoend[LÕPPKELLAAEG]),TundideLoend[KORDUMATU]),TundideLoend[KORDUMATU],0),2),0)","v":0},{"$f":"IFERROR(INDEX(TundideLoend[],MATCH(SUMPRODUCT((TundideLoend[PÄEV]=Tunniplaan[[#Headers],[KOLMAPÄEV]])*(ROUNDDOWN($B49,10)>=ROUNDDOWN(TundideLoend[ALGUSKELLAAEG],10))*($B49<=TundideLoend[LÕPPKELLAAEG]),TundideLoend[KORDUMATU]),TundideLoend[KORDUMATU],0),2),0)","v":0},{"$f":"IFERROR(INDEX(TundideLoend[],MATCH(SUMPRODUCT((TundideLoend[PÄEV]=Tunniplaan[[#Headers],[NELJAPÄEV]])*(ROUNDDOWN($B49,10)>=ROUNDDOWN(TundideLoend[ALGUSKELLAAEG],10))*($B49<=TundideLoend[LÕPPKELLAAEG]),TundideLoend[KORDUMATU]),TundideLoend[KORDUMATU],0),2),0)","v":0},{"$f":"IFERROR(INDEX(TundideLoend[],MATCH(SUMPRODUCT((TundideLoend[PÄEV]=Tunniplaan[[#Headers],[REEDE]])*(ROUNDDOWN($B49,10)>=ROUNDDOWN(TundideLoend[ALGUSKELLAAEG],10))*($B49<=TundideLoend[LÕPPKELLAAEG]),TundideLoend[KORDUMATU]),TundideLoend[KORDUMATU],0),2),0)","v":0},{"$f":"IFERROR(INDEX(TundideLoend[],MATCH(SUMPRODUCT((TundideLoend[PÄEV]=Tunniplaan[[#Headers],[LAUPÄEV]])*(ROUNDDOWN($B49,10)>=ROUNDDOWN(TundideLoend[ALGUSKELLAAEG],10))*($B49<=TundideLoend[LÕPPKELLAAEG]),TundideLoend[KORDUMATU]),TundideLoend[KORDUMATU],0),2),0)","v":0}]
[null,"19:30:00",{"$f":"IFERROR(INDEX(TundideLoend[],MATCH(SUMPRODUCT((TundideLoend[PÄEV]=Tunniplaan[[#Headers],[PÜHAPÄEV]])*(ROUNDDOWN($B50,10)>=ROUNDDOWN(TundideLoend[ALGUSKELLAAEG],10))*($B50<=TundideLoend[LÕPPKELLAAEG]),TundideLoend[KORDUMATU]),TundideLoend[KORDUMATU],0),2),0)","v":0},{"$f":"IFERROR(INDEX(TundideLoend[],MATCH(SUMPRODUCT((TundideLoend[PÄEV]=Tunniplaan[[#Headers],[ESMASPÄEV]])*(ROUNDDOWN($B50,10)>=ROUNDDOWN(TundideLoend[ALGUSKELLAAEG],10))*($B50<=TundideLoend[LÕPPKELLAAEG]),TundideLoend[KORDUMATU]),TundideLoend[KORDUMATU],0),2),0)","v":0},{"$f":"IFERROR(INDEX(TundideLoend[],MATCH(SUMPRODUCT((TundideLoend[PÄEV]=Tunniplaan[[#Headers],[TEISIPÄEV]])*(ROUNDDOWN($B50,10)>=ROUNDDOWN(TundideLoend[ALGUSKELLAAEG],10))*($B50<=TundideLoend[LÕPPKELLAAEG]),TundideLoend[KORDUMATU]),TundideLoend[KORDUMATU],0),2),0)","v":0},{"$f":"IFERROR(INDEX(TundideLoend[],MATCH(SUMPRODUCT((TundideLoend[PÄEV]=Tunniplaan[[#Headers],[KOLMAPÄEV]])*(ROUNDDOWN($B50,10)>=ROUNDDOWN(TundideLoend[ALGUSKELLAAEG],10))*($B50<=TundideLoend[LÕPPKELLAAEG]),TundideLoend[KORDUMATU]),TundideLoend[KORDUMATU],0),2),0)","v":0},{"$f":"IFERROR(INDEX(TundideLoend[],MATCH(SUMPRODUCT((TundideLoend[PÄEV]=Tunniplaan[[#Headers],[NELJAPÄEV]])*(ROUNDDOWN($B50,10)>=ROUNDDOWN(TundideLoend[ALGUSKELLAAEG],10))*($B50<=TundideLoend[LÕPPKELLAAEG]),TundideLoend[KORDUMATU]),TundideLoend[KORDUMATU],0),2),0)","v":0},{"$f":"IFERROR(INDEX(TundideLoend[],MATCH(SUMPRODUCT((TundideLoend[PÄEV]=Tunniplaan[[#Headers],[REEDE]])*(ROUNDDOWN($B50,10)>=ROUNDDOWN(TundideLoend[ALGUSKELLAAEG],10))*($B50<=TundideLoend[LÕPPKELLAAEG]),TundideLoend[KORDUMATU]),TundideLoend[KORDUMATU],0),2),0)","v":0},{"$f":"IFERROR(INDEX(TundideLoend[],MATCH(SUMPRODUCT((TundideLoend[PÄEV]=Tunniplaan[[#Headers],[LAUPÄEV]])*(ROUNDDOWN($B50,10)>=ROUNDDOWN(TundideLoend[ALGUSKELLAAEG],10))*($B50<=TundideLoend[LÕPPKELLAAEG]),TundideLoend[KORDUMATU]),TundideLoend[KORDUMATU],0),2),0)","v":0}]
[null,"19:45:00",{"$f":"IFERROR(INDEX(TundideLoend[],MATCH(SUMPRODUCT((TundideLoend[PÄEV]=Tunniplaan[[#Headers],[PÜHAPÄEV]])*(ROUNDDOWN($B51,10)>=ROUNDDOWN(TundideLoend[ALGUSKELLAAEG],10))*($B51<=TundideLoend[LÕPPKELLAAEG]),TundideLoend[KORDUMATU]),TundideLoend[KORDUMATU],0),2),0)","v":0},{"$f":"IFERROR(INDEX(TundideLoend[],MATCH(SUMPRODUCT((TundideLoend[PÄEV]=Tunniplaan[[#Headers],[ESMASPÄEV]])*(ROUNDDOWN($B51,10)>=ROUNDDOWN(TundideLoend[ALGUSKELLAAEG],10))*($B51<=TundideLoend[LÕPPKELLAAEG]),TundideLoend[KORDUMATU]),TundideLoend[KORDUMATU],0),2),0)","v":0},{"$f":"IFERROR(INDEX(TundideLoend[],MATCH(SUMPRODUCT((TundideLoend[PÄEV]=Tunniplaan[[#Headers],[TEISIPÄEV]])*(ROUNDDOWN($B51,10)>=ROUNDDOWN(TundideLoend[ALGUSKELLAAEG],10))*($B51<=TundideLoend[LÕPPKELLAAEG]),TundideLoend[KORDUMATU]),TundideLoend[KORDUMATU],0),2),0)","v":0},{"$f":"IFERROR(INDEX(TundideLoend[],MATCH(SUMPRODUCT((TundideLoend[PÄEV]=Tunniplaan[[#Headers],[KOLMAPÄEV]])*(ROUNDDOWN($B51,10)>=ROUNDDOWN(TundideLoend[ALGUSKELLAAEG],10))*($B51<=TundideLoend[LÕPPKELLAAEG]),TundideLoend[KORDUMATU]),TundideLoend[KORDUMATU],0),2),0)","v":0},{"$f":"IFERROR(INDEX(TundideLoend[],MATCH(SUMPRODUCT((TundideLoend[PÄEV]=Tunniplaan[[#Headers],[NELJAPÄEV]])*(ROUNDDOWN($B51,10)>=ROUNDDOWN(TundideLoend[ALGUSKELLAAEG],10))*($B51<=TundideLoend[LÕPPKELLAAEG]),TundideLoend[KORDUMATU]),TundideLoend[KORDUMATU],0),2),0)","v":0},{"$f":"IFERROR(INDEX(TundideLoend[],MATCH(SUMPRODUCT((TundideLoend[PÄEV]=Tunniplaan[[#Headers],[REEDE]])*(ROUNDDOWN($B51,10)>=ROUNDDOWN(TundideLoend[ALGUSKELLAAEG],10))*($B51<=TundideLoend[LÕPPKELLAAEG]),TundideLoend[KORDUMATU]),TundideLoend[KORDUMATU],0),2),0)","v":0},{"$f":"IFERROR(INDEX(TundideLoend[],MATCH(SUMPRODUCT((TundideLoend[PÄEV]=Tunniplaan[[#Headers],[LAUPÄEV]])*(ROUNDDOWN($B51,10)>=ROUNDDOWN(TundideLoend[ALGUSKELLAAEG],10))*($B51<=TundideLoend[LÕPPKELLAAEG]),TundideLoend[KORDUMATU]),TundideLoend[KORDUMATU],0),2),0)","v":0}]
[null,"20:00:00",{"$f":"IFERROR(INDEX(TundideLoend[],MATCH(SUMPRODUCT((TundideLoend[PÄEV]=Tunniplaan[[#Headers],[PÜHAPÄEV]])*(ROUNDDOWN($B52,10)>=ROUNDDOWN(TundideLoend[ALGUSKELLAAEG],10))*($B52<=TundideLoend[LÕPPKELLAAEG]),TundideLoend[KORDUMATU]),TundideLoend[KORDUMATU],0),2),0)","v":0},{"$f":"IFERROR(INDEX(TundideLoend[],MATCH(SUMPRODUCT((TundideLoend[PÄEV]=Tunniplaan[[#Headers],[ESMASPÄEV]])*(ROUNDDOWN($B52,10)>=ROUNDDOWN(TundideLoend[ALGUSKELLAAEG],10))*($B52<=TundideLoend[LÕPPKELLAAEG]),TundideLoend[KORDUMATU]),TundideLoend[KORDUMATU],0),2),0)","v":0},{"$f":"IFERROR(INDEX(TundideLoend[],MATCH(SUMPRODUCT((TundideLoend[PÄEV]=Tunniplaan[[#Headers],[TEISIPÄEV]])*(ROUNDDOWN($B52,10)>=ROUNDDOWN(TundideLoend[ALGUSKELLAAEG],10))*($B52<=TundideLoend[LÕPPKELLAAEG]),TundideLoend[KORDUMATU]),TundideLoend[KORDUMATU],0),2),0)","v":0},{"$f":"IFERROR(INDEX(TundideLoend[],MATCH(SUMPRODUCT((TundideLoend[PÄEV]=Tunniplaan[[#Headers],[KOLMAPÄEV]])*(ROUNDDOWN($B52,10)>=ROUNDDOWN(TundideLoend[ALGUSKELLAAEG],10))*($B52<=TundideLoend[LÕPPKELLAAEG]),TundideLoend[KORDUMATU]),TundideLoend[KORDUMATU],0),2),0)","v":0},{"$f":"IFERROR(INDEX(TundideLoend[],MATCH(SUMPRODUCT((TundideLoend[PÄEV]=Tunniplaan[[#Headers],[NELJAPÄEV]])*(ROUNDDOWN($B52,10)>=ROUNDDOWN(TundideLoend[ALGUSKELLAAEG],10))*($B52<=TundideLoend[LÕPPKELLAAEG]),TundideLoend[KORDUMATU]),TundideLoend[KORDUMATU],0),2),0)","v":0},{"$f":"IFERROR(INDEX(TundideLoend[],MATCH(SUMPRODUCT((TundideLoend[PÄEV]=Tunniplaan[[#Headers],[REEDE]])*(ROUNDDOWN($B52,10)>=ROUNDDOWN(TundideLoend[ALGUSKELLAAEG],10))*($B52<=TundideLoend[LÕPPKELLAAEG]),TundideLoend[KORDUMATU]),TundideLoend[KORDUMATU],0),2),0)","v":0},{"$f":"IFERROR(INDEX(TundideLoend[],MATCH(SUMPRODUCT((TundideLoend[PÄEV]=Tunniplaan[[#Headers],[LAUPÄEV]])*(ROUNDDOWN($B52,10)>=ROUNDDOWN(TundideLoend[ALGUSKELLAAEG],10))*($B52<=TundideLoend[LÕPPKELLAAEG]),TundideLoend[KORDUMATU]),TundideLoend[KORDUMATU],0),2),0)","v":0}]
[null,"20:15:00",{"$f":"IFERROR(INDEX(TundideLoend[],MATCH(SUMPRODUCT((TundideLoend[PÄEV]=Tunniplaan[[#Headers],[PÜHAPÄEV]])*(ROUNDDOWN($B53,10)>=ROUNDDOWN(TundideLoend[ALGUSKELLAAEG],10))*($B53<=TundideLoend[LÕPPKELLAAEG]),TundideLoend[KORDUMATU]),TundideLoend[KORDUMATU],0),2),0)","v":0},{"$f":"IFERROR(INDEX(TundideLoend[],MATCH(SUMPRODUCT((TundideLoend[PÄEV]=Tunniplaan[[#Headers],[ESMASPÄEV]])*(ROUNDDOWN($B53,10)>=ROUNDDOWN(TundideLoend[ALGUSKELLAAEG],10))*($B53<=TundideLoend[LÕPPKELLAAEG]),TundideLoend[KORDUMATU]),TundideLoend[KORDUMATU],0),2),0)","v":0},{"$f":"IFERROR(INDEX(TundideLoend[],MATCH(SUMPRODUCT((TundideLoend[PÄEV]=Tunniplaan[[#Headers],[TEISIPÄEV]])*(ROUNDDOWN($B53,10)>=ROUNDDOWN(TundideLoend[ALGUSKELLAAEG],10))*($B53<=TundideLoend[LÕPPKELLAAEG]),TundideLoend[KORDUMATU]),TundideLoend[KORDUMATU],0),2),0)","v":0},{"$f":"IFERROR(INDEX(TundideLoend[],MATCH(SUMPRODUCT((TundideLoend[PÄEV]=Tunniplaan[[#Headers],[KOLMAPÄEV]])*(ROUNDDOWN($B53,10)>=ROUNDDOWN(TundideLoend[ALGUSKELLAAEG],10))*($B53<=TundideLoend[LÕPPKELLAAEG]),TundideLoend[KORDUMATU]),TundideLoend[KORDUMATU],0),2),0)","v":0},{"$f":"IFERROR(INDEX(TundideLoend[],MATCH(SUMPRODUCT((TundideLoend[PÄEV]=Tunniplaan[[#Headers],[NELJAPÄEV]])*(ROUNDDOWN($B53,10)>=ROUNDDOWN(TundideLoend[ALGUSKELLAAEG],10))*($B53<=TundideLoend[LÕPPKELLAAEG]),TundideLoend[KORDUMATU]),TundideLoend[KORDUMATU],0),2),0)","v":0},{"$f":"IFERROR(INDEX(TundideLoend[],MATCH(SUMPRODUCT((TundideLoend[PÄEV]=Tunniplaan[[#Headers],[REEDE]])*(ROUNDDOWN($B53,10)>=ROUNDDOWN(TundideLoend[ALGUSKELLAAEG],10))*($B53<=TundideLoend[LÕPPKELLAAEG]),TundideLoend[KORDUMATU]),TundideLoend[KORDUMATU],0),2),0)","v":0},{"$f":"IFERROR(INDEX(TundideLoend[],MATCH(SUMPRODUCT((TundideLoend[PÄEV]=Tunniplaan[[#Headers],[LAUPÄEV]])*(ROUNDDOWN($B53,10)>=ROUNDDOWN(TundideLoend[ALGUSKELLAAEG],10))*($B53<=TundideLoend[LÕPPKELLAAEG]),TundideLoend[KORDUMATU]),TundideLoend[KORDUMATU],0),2),0)","v":0}]
[null,"20:30:00",{"$f":"IFERROR(INDEX(TundideLoend[],MATCH(SUMPRODUCT((TundideLoend[PÄEV]=Tunniplaan[[#Headers],[PÜHAPÄEV]])*(ROUNDDOWN($B54,10)>=ROUNDDOWN(TundideLoend[ALGUSKELLAAEG],10))*($B54<=TundideLoend[LÕPPKELLAAEG]),TundideLoend[KORDUMATU]),TundideLoend[KORDUMATU],0),2),0)","v":0},{"$f":"IFERROR(INDEX(TundideLoend[],MATCH(SUMPRODUCT((TundideLoend[PÄEV]=Tunniplaan[[#Headers],[ESMASPÄEV]])*(ROUNDDOWN($B54,10)>=ROUNDDOWN(TundideLoend[ALGUSKELLAAEG],10))*($B54<=TundideLoend[LÕPPKELLAAEG]),TundideLoend[KORDUMATU]),TundideLoend[KORDUMATU],0),2),0)","v":0},{"$f":"IFERROR(INDEX(TundideLoend[],MATCH(SUMPRODUCT((TundideLoend[PÄEV]=Tunniplaan[[#Headers],[TEISIPÄEV]])*(ROUNDDOWN($B54,10)>=ROUNDDOWN(TundideLoend[ALGUSKELLAAEG],10))*($B54<=TundideLoend[LÕPPKELLAAEG]),TundideLoend[KORDUMATU]),TundideLoend[KORDUMATU],0),2),0)","v":0},{"$f":"IFERROR(INDEX(TundideLoend[],MATCH(SUMPRODUCT((TundideLoend[PÄEV]=Tunniplaan[[#Headers],[KOLMAPÄEV]])*(ROUNDDOWN($B54,10)>=ROUNDDOWN(TundideLoend[ALGUSKELLAAEG],10))*($B54<=TundideLoend[LÕPPKELLAAEG]),TundideLoend[KORDUMATU]),TundideLoend[KORDUMATU],0),2),0)","v":0},{"$f":"IFERROR(INDEX(TundideLoend[],MATCH(SUMPRODUCT((TundideLoend[PÄEV]=Tunniplaan[[#Headers],[NELJAPÄEV]])*(ROUNDDOWN($B54,10)>=ROUNDDOWN(TundideLoend[ALGUSKELLAAEG],10))*($B54<=TundideLoend[LÕPPKELLAAEG]),TundideLoend[KORDUMATU]),TundideLoend[KORDUMATU],0),2),0)","v":0},{"$f":"IFERROR(INDEX(TundideLoend[],MATCH(SUMPRODUCT((TundideLoend[PÄEV]=Tunniplaan[[#Headers],[REEDE]])*(ROUNDDOWN($B54,10)>=ROUNDDOWN(TundideLoend[ALGUSKELLAAEG],10))*($B54<=TundideLoend[LÕPPKELLAAEG]),TundideLoend[KORDUMATU]),TundideLoend[KORDUMATU],0),2),0)","v":0},{"$f":"IFERROR(INDEX(TundideLoend[],MATCH(SUMPRODUCT((TundideLoend[PÄEV]=Tunniplaan[[#Headers],[LAUPÄEV]])*(ROUNDDOWN($B54,10)>=ROUNDDOWN(TundideLoend[ALGUSKELLAAEG],10))*($B54<=TundideLoend[LÕPPKELLAAEG]),TundideLoend[KORDUMATU]),TundideLoend[KORDUMATU],0),2),0)","v":0}]
[null,{"$f":"B54+Samm","v":"20:45:00"},{"$f":"IFERROR(INDEX(TundideLoend[],MATCH(SUMPRODUCT((TundideLoend[PÄEV]=Tunniplaan[[#Headers],[PÜHAPÄEV]])*(ROUNDDOWN($B55,10)>=ROUNDDOWN(TundideLoend[ALGUSKELLAAEG],10))*($B55<=TundideLoend[LÕPPKELLAAEG]),TundideLoend[KORDUMATU]),TundideLoend[KORDUMATU],0),2),0)","v":0},{"$f":"IFERROR(INDEX(TundideLoend[],MATCH(SUMPRODUCT((TundideLoend[PÄEV]=Tunniplaan[[#Headers],[ESMASPÄEV]])*(ROUNDDOWN($B55,10)>=ROUNDDOWN(TundideLoend[ALGUSKELLAAEG],10))*($B55<=TundideLoend[LÕPPKELLAAEG]),TundideLoend[KORDUMATU]),TundideLoend[KORDUMATU],0),2),0)","v":0},{"$f":"IFERROR(INDEX(TundideLoend[],MATCH(SUMPRODUCT((TundideLoend[PÄEV]=Tunniplaan[[#Headers],[TEISIPÄEV]])*(ROUNDDOWN($B55,10)>=ROUNDDOWN(TundideLoend[ALGUSKELLAAEG],10))*($B55<=TundideLoend[LÕPPKELLAAEG]),TundideLoend[KORDUMATU]),TundideLoend[KORDUMATU],0),2),0)","v":0},{"$f":"IFERROR(INDEX(TundideLoend[],MATCH(SUMPRODUCT((TundideLoend[PÄEV]=Tunniplaan[[#Headers],[KOLMAPÄEV]])*(ROUNDDOWN($B55,10)>=ROUNDDOWN(TundideLoend[ALGUSKELLAAEG],10))*($B55<=TundideLoend[LÕPPKELLAAEG]),TundideLoend[KORDUMATU]),TundideLoend[KORDUMATU],0),2),0)","v":0},{"$f":"IFERROR(INDEX(TundideLoend[],MATCH(SUMPRODUCT((TundideLoend[PÄEV]=Tunniplaan[[#Headers],[NELJAPÄEV]])*(ROUNDDOWN($B55,10)>=ROUNDDOWN(TundideLoend[ALGUSKELLAAEG],10))*($B55<=TundideLoend[LÕPPKELLAAEG]),TundideLoend[KORDUMATU]),TundideLoend[KORDUMATU],0),2),0)","v":0},{"$f":"IFERROR(INDEX(TundideLoend[],MATCH(SUMPRODUCT((TundideLoend[PÄEV]=Tunniplaan[[#Headers],[REEDE]])*(ROUNDDOWN($B55,10)>=ROUNDDOWN(TundideLoend[ALGUSKELLAAEG],10))*($B55<=TundideLoend[LÕPPKELLAAEG]),TundideLoend[KORDUMATU]),TundideLoend[KORDUMATU],0),2),0)","v":0},{"$f":"IFERROR(INDEX(TundideLoend[],MATCH(SUMPRODUCT((TundideLoend[PÄEV]=Tunniplaan[[#Headers],[LAUPÄEV]])*(ROUNDDOWN($B55,10)>=ROUNDDOWN(TundideLoend[ALGUSKELLAAEG],10))*($B55<=TundideLoend[LÕPPKELLAAEG]),TundideLoend[KORDUMATU]),TundideLoend[KORDUMATU],0),2),0)","v":0}]
[null,"21:00:00",{"$f":"IFERROR(INDEX(TundideLoend[],MATCH(SUMPRODUCT((TundideLoend[PÄEV]=Tunniplaan[[#Headers],[PÜHAPÄEV]])*(ROUNDDOWN($B56,10)>=ROUNDDOWN(TundideLoend[ALGUSKELLAAEG],10))*($B56<=TundideLoend[LÕPPKELLAAEG]),TundideLoend[KORDUMATU]),TundideLoend[KORDUMATU],0),2),0)","v":0},{"$f":"IFERROR(INDEX(TundideLoend[],MATCH(SUMPRODUCT((TundideLoend[PÄEV]=Tunniplaan[[#Headers],[ESMASPÄEV]])*(ROUNDDOWN($B56,10)>=ROUNDDOWN(TundideLoend[ALGUSKELLAAEG],10))*($B56<=TundideLoend[LÕPPKELLAAEG]),TundideLoend[KORDUMATU]),TundideLoend[KORDUMATU],0),2),0)","v":0},{"$f":"IFERROR(INDEX(TundideLoend[],MATCH(SUMPRODUCT((TundideLoend[PÄEV]=Tunniplaan[[#Headers],[TEISIPÄEV]])*(ROUNDDOWN($B56,10)>=ROUNDDOWN(TundideLoend[ALGUSKELLAAEG],10))*($B56<=TundideLoend[LÕPPKELLAAEG]),TundideLoend[KORDUMATU]),TundideLoend[KORDUMATU],0),2),0)","v":0},{"$f":"IFERROR(INDEX(TundideLoend[],MATCH(SUMPRODUCT((TundideLoend[PÄEV]=Tunniplaan[[#Headers],[KOLMAPÄEV]])*(ROUNDDOWN($B56,10)>=ROUNDDOWN(TundideLoend[ALGUSKELLAAEG],10))*($B56<=TundideLoend[LÕPPKELLAAEG]),TundideLoend[KORDUMATU]),TundideLoend[KORDUMATU],0),2),0)","v":0},{"$f":"IFERROR(INDEX(TundideLoend[],MATCH(SUMPRODUCT((TundideLoend[PÄEV]=Tunniplaan[[#Headers],[NELJAPÄEV]])*(ROUNDDOWN($B56,10)>=ROUNDDOWN(TundideLoend[ALGUSKELLAAEG],10))*($B56<=TundideLoend[LÕPPKELLAAEG]),TundideLoend[KORDUMATU]),TundideLoend[KORDUMATU],0),2),0)","v":0},{"$f":"IFERROR(INDEX(TundideLoend[],MATCH(SUMPRODUCT((TundideLoend[PÄEV]=Tunniplaan[[#Headers],[REEDE]])*(ROUNDDOWN($B56,10)>=ROUNDDOWN(TundideLoend[ALGUSKELLAAEG],10))*($B56<=TundideLoend[LÕPPKELLAAEG]),TundideLoend[KORDUMATU]),TundideLoend[KORDUMATU],0),2),0)","v":0},{"$f":"IFERROR(INDEX(TundideLoend[],MATCH(SUMPRODUCT((TundideLoend[PÄEV]=Tunniplaan[[#Headers],[LAUPÄEV]])*(ROUNDDOWN($B56,10)>=ROUNDDOWN(TundideLoend[ALGUSKELLAAEG],10))*($B56<=TundideLoend[LÕPPKELLAAEG]),TundideLoend[KORDUMATU]),TundideLoend[KORDUMATU],0),2),0)","v":0}]

{"sheet":"Tundide loend","index":1,"n_rows":10,"n_cols":8,"rows_kept":10,"merged":[[0,1,0,5],[0,6,0,7]]}
[null,"TUNDIDE LOEND",{"$nulls":4},"Tunniplaan"]
[null,"TUND","ID","PÄEV","ASUKOHT","ALGUSKELLAAEG","LÕPPKELLAAEG","KORDUMATU"]
[null,"Tehnikatekstide koostamine","WR-121","ESMASPÄEV","Hoone A","13:00:00","14:00:00",{"$f":"ROW()-ROW(TundideLoend[[#Headers],[KORDUMATU]])","v":1}]
[null,"Tehnikatekstide koostamine","WR-121","KOLMAPÄEV","Hoone A","13:00:00","14:00:00",{"$f":"ROW()-ROW(TundideLoend[[#Headers],[KORDUMATU]])","v":2}]
[null,"Avalik esinemine","SP-111","ESMASPÄEV","Hoone B","16:00:00","17:00:00",{"$f":"ROW()-ROW(TundideLoend[[#Headers],[KORDUMATU]])","v":3}]
[null,"Tervis ja treening","HPE-295","TEISIPÄEV","Hoone B","11:00:00","12:00:00",{"$f":"ROW()-ROW(TundideLoend[[#Headers],[KORDUMATU]])","v":4}]
[null,"Tervis ja treening","HPE-295","NELJAPÄEV","Hoone B","11:00:00","12:00:00",{"$f":"ROW()-ROW(TundideLoend[[#Headers],[KORDUMATU]])","v":5}]
[null,"Algebra","MTH-113","ESMASPÄEV","Hoone C","08:10:00","09:15:00",{"$f":"ROW()-ROW(TundideLoend[[#Headers],[KORDUMATU]])","v":6}]
[null,"Algebra","MTH-113","KOLMAPÄEV","Hoone C","08:10:00","09:15:00",{"$f":"ROW()-ROW(TundideLoend[[#Headers],[KORDUMATU]])","v":7}]
[null,"Algebra","MTH-113","REEDE","Hoone C","08:10:00","09:15:00",{"$f":"ROW()-ROW(TundideLoend[[#Headers],[KORDUMATU]])","v":8}]